Workbook

Sheet odlog
B1: Exponent | C1: Mantissa | D1: Scaling | E1: offset | M1: transmitted code | N1: minimum value | O1: midpoint | P1: maximum value | Q1: bin size
B2: 2 | C2: 4 | D2: 1 | E2: 0 | F2: <- change these to match the parameter description "odlog E/M in units of S" | M2: 0 | N2: =antiod(0,od_e,od_m)*od_s + od_o -> 0 | O2: =($N$2+$P$2)/2 -> 0.5 | P2: =$N3 -> 1
M3: 1 | N3: =antiod(1,od_e,od_m)*od_s + od_o -> 1 | O3: =($N3+$P3)/2 -> 1.5 | P3: 2 | Q3: =$N3-$N2 -> 1
B4: maximum value | D4: =antiod(od_n,od_e,od_m)*od_s + od_o -> 247.5 | M4: 2 | N4: =antiod(2,od_e,od_m)*od_s + od_o -> 2 | O4: 2.5 | P4: 3 | Q4: 1
B5: number of codes | D5: =2^(od_e+od_m) -> 64 | M5: 3 | N5: =antiod(3,od_e,od_m)*od_s + od_o -> 3 | O5: 3.5 | P5: 4 | Q5: 1
M6: 4 | N6: =antiod(4,od_e,od_m)*od_s + od_o -> 4 | O6: 4.5 | P6: 5 | Q6: 1
M7: 5 | N7: =antiod(5,od_e,od_m)*od_s + od_o -> 5 | O7: 5.5 | P7: 6 | Q7: 1
M8: 6 | N8: =antiod(6,od_e,od_m)*od_s + od_o -> 6 | O8: 6.5 | P8: 7 | Q8: 1
M9: 7 | N9: =antiod(7,od_e,od_m)*od_s + od_o -> 7 | O9: 7.5 | P9: 8 | Q9: 1
M10: 8 | N10: =antiod(8,od_e,od_m)*od_s + od_o -> 8 | O10: 8.5 | P10: 9 | Q10: 1
M11: 9 | N11: =antiod(9,od_e,od_m)*od_s + od_o -> 9 | O11: 9.5 | P11: 10 | Q11: 1
M12: 10 | N12: =antiod(10,od_e,od_m)*od_s + od_o -> 10 | O12: 10.5 | P12: 11 | Q12: 1
M13: 11 | N13: =antiod(11,od_e,od_m)*od_s + od_o -> 11 | O13: 11.5 | P13: 12 | Q13: 1
M14: 12 | N14: =antiod(12,od_e,od_m)*od_s + od_o -> 12 | O14: 12.5 | P14: 13 | Q14: 1
M15: 13 | N15: =antiod(13,od_e,od_m)*od_s + od_o -> 13 | O15: 13.5 | P15: 14 | Q15: 1
M16: 14 | N16: =antiod(14,od_e,od_m)*od_s + od_o -> 14 | O16: 14.5 | P16: 15 | Q16: 1
M17: 15 | N17: =antiod(15,od_e,od_m)*od_s + od_o -> 15 | O17: 15.75 | P17: 16.5 | Q17: 1
M18: 16 | N18: =antiod(16,od_e,od_m)*od_s + od_o -> 16.5 | O18: 17.5 | P18: 18.5 | Q18: 1.5
M19: 17 | N19: =antiod(17,od_e,od_m)*od_s + od_o -> 18.5 | O19: 19.5 | P19: 20.5 | Q19: 2
M20: 18 | N20: =antiod(18,od_e,od_m)*od_s + od_o -> 20.5 | O20: 21.5 | P20: 22.5 | Q20: 2
M21: 19 | N21: =antiod(19,od_e,od_m)*od_s + od_o -> 22.5 | O21: 23.5 | P21: 24.5 | Q21: 2
M22: 20 | N22: =antiod(20,od_e,od_m)*od_s + od_o -> 24.5 | O22: 25.5 | P22: 26.5 | Q22: 2
M23: 21 | N23: =antiod(21,od_e,od_m)*od_s + od_o -> 26.5 | O23: 27.5 | P23: 28.5 | Q23: 2
M24: 22 | N24: =antiod(22,od_e,od_m)*od_s + od_o -> 28.5 | O24: 29.5 | P24: 30.5 | Q24: 2
M25: 23 | N25: =antiod(23,od_e,od_m)*od_s + od_o -> 30.5 | O25: 31.5 | P25: 32.5 | Q25: 2
M26: 24 | N26: =antiod(24,od_e,od_m)*od_s + od_o -> 32.5 | O26: 33.5 | P26: 34.5 | Q26: 2
M27: 25 | N27: =antiod(25,od_e,od_m)*od_s + od_o -> 34.5 | O27: 35.5 | P27: 36.5 | Q27: 2
M28: 26 | N28: =antiod(26,od_e,od_m)*od_s + od_o -> 36.5 | O28: 37.5 | P28: 38.5 | Q28: 2
M29: 27 | N29: =antiod(27,od_e,od_m)*od_s + od_o -> 38.5 | O29: 39.5 | P29: 40.5 | Q29: 2
M30: 28 | N30: =antiod(28,od_e,od_m)*od_s + od_o -> 40.5 | O30: 41.5 | P30: 42.5 | Q30: 2
M31: 29 | N31: =antiod(29,od_e,od_m)*od_s + od_o -> 42.5 | O31: 43.5 | P31: 44.5 | Q31: 2
M32: 30 | N32: =antiod(30,od_e,od_m)*od_s + od_o -> 44.5 | O32: 45.5 | P32: 46.5 | Q32: 2
M33: 31 | N33: =antiod(31,od_e,od_m)*od_s + od_o -> 46.5 | O33: 48 | P33: 49.5 | Q33: 2
M34: 32 | N34: =antiod(32,od_e,od_m)*od_s + od_o -> 49.5 | O34: 51.5 | P34: =$N35 -> 53.5 | Q34: 3
M35: 33 | N35: =antiod(33,od_e,od_m)*od_s + od_o -> 53.5 | O35: =($N35+$P35)/2 -> 55.5 | P35: 57.5 | Q35: =$N35-$N34 -> 4
M36: 34 | N36: =antiod(34,od_e,od_m)*od_s + od_o -> 57.5 | O36: 59.5 | P36: 61.5 | Q36: 4
M37: 35 | N37: =antiod(35,od_e,od_m)*od_s + od_o -> 61.5 | O37: 63.5 | P37: 65.5 | Q37: 4
M38: 36 | N38: =antiod(36,od_e,od_m)*od_s + od_o -> 65.5 | O38: 67.5 | P38: 69.5 | Q38: 4
M39: 37 | N39: =antiod(37,od_e,od_m)*od_s + od_o -> 69.5 | O39: 71.5 | P39: 73.5 | Q39: 4
M40: 38 | N40: =antiod(38,od_e,od_m)*od_s + od_o -> 73.5 | O40: 75.5 | P40: 77.5 | Q40: 4
M41: 39 | N41: =antiod(39,od_e,od_m)*od_s + od_o -> 77.5 | O41: 79.5 | P41: 81.5 | Q41: 4
M42: 40 | N42: =antiod(40,od_e,od_m)*od_s + od_o -> 81.5 | O42: 83.5 | P42: 85.5 | Q42: 4
M43: 41 | N43: =antiod(41,od_e,od_m)*od_s + od_o -> 85.5 | O43: 87.5 | P43: 89.5 | Q43: 4
M44: 42 | N44: =antiod(42,od_e,od_m)*od_s + od_o -> 89.5 | O44: 91.5 | P44: 93.5 | Q44: 4
M45: 43 | N45: =antiod(43,od_e,od_m)*od_s + od_o -> 93.5 | O45: 95.5 | P45: 97.5 | Q45: 4
M46: 44 | N46: =antiod(44,od_e,od_m)*od_s + od_o -> 97.5 | O46: 99.5 | P46: 101.5 | Q46: 4
M47: 45 | N47: =antiod(45,od_e,od_m)*od_s + od_o -> 101.5 | O47: 103.5 | P47: 105.5 | Q47: 4
M48: 46 | N48: =antiod(46,od_e,od_m)*od_s + od_o -> 105.5 | O48: 107.5 | P48: 109.5 | Q48: 4
M49: 47 | N49: =antiod(47,od_e,od_m)*od_s + od_o -> 109.5 | O49: 112.5 | P49: 115.5 | Q49: 4
M50: 48 | N50: =antiod(48,od_e,od_m)*od_s + od_o -> 115.5 | O50: 119.5 | P50: 123.5 | Q50: 6
M51: 49 | N51: =antiod(49,od_e,od_m)*od_s + od_o -> 123.5 | O51: 127.5 | P51: 131.5 | Q51: 8
M52: 50 | N52: =antiod(50,od_e,od_m)*od_s + od_o -> 131.5 | O52: 135.5 | P52: 139.5 | Q52: 8
M53: 51 | N53: =antiod(51,od_e,od_m)*od_s + od_o -> 139.5 | O53: 143.5 | P53: 147.5 | Q53: 8
M54: 52 | N54: =antiod(52,od_e,od_m)*od_s + od_o -> 147.5 | O54: 151.5 | P54: 155.5 | Q54: 8
M55: 53 | N55: =antiod(53,od_e,od_m)*od_s + od_o -> 155.5 | O55: 159.5 | P55: 163.5 | Q55: 8
M56: 54 | N56: =antiod(54,od_e,od_m)*od_s + od_o -> 163.5 | O56: 167.5 | P56: 171.5 | Q56: 8
M57: 55 | N57: =antiod(55,od_e,od_m)*od_s + od_o -> 171.5 | O57: 175.5 | P57: 179.5 | Q57: 8
M58: 56 | N58: =antiod(56,od_e,od_m)*od_s + od_o -> 179.5 | O58: 183.5 | P58: 187.5 | Q58: 8
M59: 57 | N59: =antiod(57,od_e,od_m)*od_s + od_o -> 187.5 | O59: 191.5 | P59: 195.5 | Q59: 8
M60: 58 | N60: =antiod(58,od_e,od_m)*od_s + od_o -> 195.5 | O60: 199.5 | P60: 203.5 | Q60: 8
M61: 59 | N61: =antiod(59,od_e,od_m)*od_s + od_o -> 203.5 | O61: 207.5 | P61: 211.5 | Q61: 8
M62: 60 | N62: =antiod(60,od_e,od_m)*od_s + od_o -> 211.5 | O62: 215.5 | P62: 219.5 | Q62: 8
M63: 61 | N63: =antiod(61,od_e,od_m)*od_s + od_o -> 219.5 | O63: 223.5 | P63: 227.5 | Q63: 8
M64: 62 | N64: =antiod(62,od_e,od_m)*od_s + od_o -> 227.5 | O64: 231.5 | P64: 235.5 | Q64: 8
M65: 63 | N65: =antiod(63,od_e,od_m)*od_s + od_o -> 235.5 | O65: 241.5 | P65: 247.5 | Q65: 8
M66: max | N66: =antiod(64,od_e,od_m)*od_s + od_o -> 247.5
A1027: ="ODLOG "&od_e&"/"&od_m&" in units of "&od_s -> ODLOG 2/4 in units of 1
B1028: 0 | C1028: 1 | D1028: 2 | E1028: 3 | F1028: 4 | G1028: 5 | H1028: 6 | I1028: 7 | J1028: 8 | K1028: 9 | L1028: 10 | M1028: 11 | N1028: 12 | O1028: 13 | P1028: 14 | Q1028: 15 | R1028: 16 | S1028: 17 | T1028: 18 | U1028: 19 | V1028: 20 | W1028: 21 | X1028: 22 | Y1028: 23 | Z1028: 24 | AA1028: 25 | AB1028: 26 | AC1028: 27 | AD1028: 28 | AE1028: 29 | AF1028: 30 | AG1028: 31 | AH1028: 32 | AI1028: 33 | AJ1028: 34 | AK1028: 35 | AL1028: 36 | AM1028: 37 | AN1028: 38 | AO1028: 39 | AP1028: 40 | AQ1028: 41 | AR1028: 42 | AS1028: 43 | AT1028: 44 | AU1028: 45 | AV1028: 46 | AW1028: 47 | AX1028: 48 | AY1028: 49 | AZ1028: 50 | BA1028: 51 | BB1028: 52 | BC1028: 53 | BD1028: 54 | BE1028: 55 | BF1028: 56 | BG1028: 57 | BH1028: 58 | BI1028: 59 | BJ1028: 60 | BK1028: 61 | BL1028: 62 | BM1028: 63 | BN1028: 64 | BO1028: 65 | BP1028: 66 | BQ1028: 67 | BR1028: 68 | BS1028: 69 | BT1028: 70 | BU1028: 71 | BV1028: 72 | BW1028: 73 | BX1028: 74 | BY1028: 75 | BZ1028: 76 | CA1028: 77 | CB1028: 78 | CC1028: 79 | CD1028: 80 | CE1028: 81 | CF1028: 82 | CG1028: 83 | CH1028: 84 | CI1028: 85 | CJ1028: 86 | CK1028: 87 | CL1028: 88 | CM1028: 89 | CN1028: 90 | CO1028: 91 | CP1028: 92 | CQ1028: 93 | CR1028: 94 | CS1028: 95 | CT1028: 96 | CU1028: 97 | CV1028: 98 | CW1028: 99 | CX1028: 100 | CY1028: 101 | CZ1028: 102 | DA1028: 103 | DB1028: 104 | DC1028: 105 | DD1028: 106 | DE1028: 107 | DF1028: 108 | DG1028: 109 | DH1028: 110 | DI1028: 111 | DJ1028: 112 | DK1028: 113 | DL1028: 114 | DM1028: 115 | DN1028: 116 | DO1028: 117 | DP1028: 118 | DQ1028: 119 | DR1028: 120 | DS1028: 121 | DT1028: 122 | DU1028: 123 | DV1028: 124 | DW1028: 125 | DX1028: 126 | DY1028: 127 | DZ1028: 128 | EA1028: 129 | EB1028: 130 | EC1028: 131 | ED1028: 132 | EE1028: 133 | EF1028: 134 | EG1028: 135 | EH1028: 136 | EI1028: 137 | EJ1028: 138 | EK1028: 139 | EL1028: 140 | EM1028: 141 | EN1028: 142 | EO1028: 143 | EP1028: 144 | EQ1028: 145 | ER1028: 146 | ES1028: 147 | ET1028: 148 | EU1028: 149 | EV1028: 150 | EW1028: 151 | EX1028: 152 | EY1028: 153 | EZ1028: 154 | FA1028: 155 | FB1028: 156 | FC1028: 157 | FD1028: 158 | FE1028: 159 | FF1028: 160 | FG1028: 161 | FH1028: 162 | FI1028: 163 | FJ1028: 164 | FK1028: 165 | FL1028: 166 | FM1028: 167 | FN1028: 168 | FO1028: 169 | FP1028: 170 | FQ1028: 171 | FR1028: 172 | FS1028: 173 | FT1028: 174 | FU1028: 175 | FV1028: 176 | FW1028: 177 | FX1028: 178 | FY1028: 179 | FZ1028: 180 | GA1028: 181 | GB1028: 182 | GC1028: 183 | GD1028: 184 | GE1028: 185 | GF1028: 186 | GG1028: 187 | GH1028: 188 | GI1028: 189 | GJ1028: 190 | GK1028: 191 | GL1028: 192 | GM1028: 193 | GN1028: 194 | GO1028: 195 | GP1028: 196 | GQ1028: 197 | GR1028: 198 | GS1028: 199 | GT1028: 200 | GU1028: 201 | GV1028: 202 | GW1028: 203 | GX1028: 204 | GY1028: 205 | GZ1028: 206 | HA1028: 207 | HB1028: 208 | HC1028: 209 | HD1028: 210 | HE1028: 211 | HF1028: 212 | HG1028: 213 | HH1028: 214 | HI1028: 215 | HJ1028: 216 | HK1028: 217 | HL1028: 218 | HM1028: 219 | HN1028: 220 | HO1028: 221 | HP1028: 222 | HQ1028: 223 | HR1028: 224 | HS1028: 225 | HT1028: 226 | HU1028: 227 | HV1028: 228 | HW1028: 229 | HX1028: 230 | HY1028: 231 | HZ1028: 232 | IA1028: 233 | IB1028: 234 | IC1028: 235 | ID1028: 236 | IE1028: 237 | IF1028: 238 | IG1028: 239 | IH1028: 240 | II1028: 241 | IJ1028: 242 | IK1028: 243 | IL1028: 244 | IM1028: 245 | IN1028: 246 | IO1028: 247 | IP1028: 248 | IQ1028: 249 | IR1028: 250 | IS1028: 251 | IT1028: 252 | IU1028: 253 | IV1028: 254 | IW1028: 255 | IX1028: 256 | IY1028: 257 | IZ1028: 258 | JA1028: 259 | JB1028: 260 | JC1028: 261 | JD1028: 262 | JE1028: 263 | JF1028: 264 | JG1028: 265 | JH1028: 266 | JI1028: 267 | JJ1028: 268 | JK1028: 269 | JL1028: 270 | JM1028: 271 | JN1028: 272 | JO1028: 273 | JP1028: 274 | JQ1028: 275 | JR1028: 276 | JS1028: 277 | JT1028: 278 | JU1028: 279 | JV1028: 280 | JW1028: 281 | JX1028: 282 | JY1028: 283 | JZ1028: 284 | KA1028: 285 | KB1028: 286 | KC1028: 287 | KD1028: 288 | KE1028: 289 | KF1028: 290 | KG1028: 291 | KH1028: 292 | KI1028: 293 | KJ1028: 294 | KK1028: 295 | KL1028: 296 | KM1028: 297 | KN1028: 298 | KO1028: 299 | KP1028: 300 | KQ1028: 301 | KR1028: 302 | KS1028: 303 | KT1028: 304 | KU1028: 305 | KV1028: 306 | KW1028: 307 | KX1028: 308 | KY1028: 309 | KZ1028: 310 | LA1028: 311 | LB1028: 312 | LC1028: 313 | LD1028: 314 | LE1028: 315 | LF1028: 316 | LG1028: 317 | LH1028: 318 | LI1028: 319 | LJ1028: 320 | LK1028: 321 | LL1028: 322 | LM1028: 323 | LN1028: 324 | LO1028: 325 | LP1028: 326 | LQ1028: 327 | LR1028: 328 | LS1028: 329 | LT1028: 330 | LU1028: 331 | LV1028: 332 | LW1028: 333 | LX1028: 334 | LY1028: 335 | LZ1028: 336 | MA1028: 337 | MB1028: 338 | MC1028: 339 | MD1028: 340 | ME1028: 341 | MF1028: 342 | MG1028: 343 | MH1028: 344 | MI1028: 345 | MJ1028: 346 | MK1028: 347 | ML1028: 348 | MM1028: 349 | MN1028: 350 | MO1028: 351 | MP1028: 352 | MQ1028: 353 | MR1028: 354 | MS1028: 355 | MT1028: 356 | MU1028: 357 | MV1028: 358 | MW1028: 359 | MX1028: 360 | MY1028: 361 | MZ1028: 362 | NA1028: 363 | NB1028: 364 | NC1028: 365 | ND1028: 366 | NE1028: 367 | NF1028: 368 | NG1028: 369 | NH1028: 370 | NI1028: 371 | NJ1028: 372 | NK1028: 373 | NL1028: 374 | NM1028: 375 | NN1028: 376 | NO1028: 377 | NP1028: 378 | NQ1028: 379 | NR1028: 380 | NS1028: 381 | NT1028: 382 | NU1028: 383 | NV1028: 384 | NW1028: 385 | NX1028: 386 | NY1028: 387 | NZ1028: 388 | OA1028: 389 | OB1028: 390 | OC1028: 391 | OD1028: 392 | OE1028: 393 | OF1028: 394 | OG1028: 395 | OH1028: 396 | OI1028: 397 | OJ1028: 398 | OK1028: 399 | OL1028: 400 | OM1028: 401 | ON1028: 402 | OO1028: 403 | OP1028: 404 | OQ1028: 405 | OR1028: 406 | OS1028: 407 | OT1028: 408 | OU1028: 409 | OV1028: 410 | OW1028: 411 | OX1028: 412 | OY1028: 413 | OZ1028: 414 | PA1028: 415 | PB1028: 416 | PC1028: 417 | PD1028: 418 | PE1028: 419 | PF1028: 420 | PG1028: 421 | PH1028: 422 | PI1028: 423 | PJ1028: 424 | PK1028: 425 | PL1028: 426 | PM1028: 427 | PN1028: 428 | PO1028: 429 | PP1028: 430 | PQ1028: 431 | PR1028: 432 | PS1028: 433 | PT1028: 434 | PU1028: 435 | PV1028: 436 | PW1028: 437 | PX1028: 438 | PY1028: 439 | PZ1028: 440 | QA1028: 441 | QB1028: 442 | QC1028: 443 | QD1028: 444 | QE1028: 445 | QF1028: 446 | QG1028: 447 | QH1028: 448 | QI1028: 449 | QJ1028: 450 | QK1028: 451 | QL1028: 452 | QM1028: 453 | QN1028: 454 | QO1028: 455 | QP1028: 456 | QQ1028: 457 | QR1028: 458 | QS1028: 459 | QT1028: 460 | QU1028: 461 | QV1028: 462 | QW1028: 463 | QX1028: 464 | QY1028: 465 | QZ1028: 466 | RA1028: 467 | RB1028: 468 | RC1028: 469 | RD1028: 470 | RE1028: 471 | RF1028: 472 | RG1028: 473 | RH1028: 474 | RI1028: 475 | RJ1028: 476 | RK1028: 477 | RL1028: 478 | RM1028: 479 | RN1028: 480 | RO1028: 481 | RP1028: 482 | RQ1028: 483 | RR1028: 484 | RS1028: 485 | RT1028: 486 | RU1028: 487 | RV1028: 488 | RW1028: 489 | RX1028: 490 | RY1028: 491 | RZ1028: 492 | SA1028: 493 | SB1028: 494 | SC1028: 495 | SD1028: 496 | SE1028: 497 | SF1028: 498 | SG1028: 499 | SH1028: 500 | SI1028: 501 | SJ1028: 502 | SK1028: 503 | SL1028: 504 | SM1028: 505 | SN1028: 506 | SO1028: 507 | SP1028: 508 | SQ1028: 509 | SR1028: 510 | SS1028: 511 | ST1028: 512 | SU1028: 513 | SV1028: 514 | SW1028: 515 | SX1028: 516 | SY1028: 517 | SZ1028: 518 | TA1028: 519 | TB1028: 520 | TC1028: 521 | TD1028: 522 | TE1028: 523 | TF1028: 524 | TG1028: 525 | TH1028: 526 | TI1028: 527 | TJ1028: 528 | TK1028: 529 | TL1028: 530 | TM1028: 531 | TN1028: 532 | TO1028: 533 | TP1028: 534 | TQ1028: 535 | TR1028: 536 | TS1028: 537 | TT1028: 538 | TU1028: 539 | TV1028: 540 | TW1028: 541 | TX1028: 542 | TY1028: 543 | TZ1028: 544 | UA1028: 545 | UB1028: 546 | UC1028: 547 | UD1028: 548 | UE1028: 549 | UF1028: 550 | UG1028: 551 | UH1028: 552 | UI1028: 553 | UJ1028: 554 | UK1028: 555 | UL1028: 556 | UM1028: 557 | UN1028: 558 | UO1028: 559 | UP1028: 560 | UQ1028: 561 | UR1028: 562 | US1028: 563 | UT1028: 564 | UU1028: 565 | UV1028: 566 | UW1028: 567 | UX1028: 568 | UY1028: 569 | UZ1028: 570 | VA1028: 571 | VB1028: 572 | VC1028: 573 | VD1028: 574 | VE1028: 575 | VF1028: 576 | VG1028: 577 | VH1028: 578 | VI1028: 579 | VJ1028: 580 | VK1028: 581 | VL1028: 582 | VM1028: 583 | VN1028: 584 | VO1028: 585 | VP1028: 586 | VQ1028: 587 | VR1028: 588 | VS1028: 589 | VT1028: 590 | VU1028: 591 | VV1028: 592 | VW1028: 593 | VX1028: 594 | VY1028: 595 | VZ1028: 596 | WA1028: 597 | WB1028: 598 | WC1028: 599 | WD1028: 600 | WE1028: 601 | WF1028: 602 | WG1028: 603 | WH1028: 604 | WI1028: 605 | WJ1028: 606 | WK1028: 607 | WL1028: 608 | WM1028: 609 | WN1028: 610 | WO1028: 611 | WP1028: 612 | WQ1028: 613 | WR1028: 614 | WS1028: 615 | WT1028: 616 | WU1028: 617 | WV1028: 618 | WW1028: 619 | WX1028: 620 | WY1028: 621 | WZ1028: 622 | XA1028: 623 | XB1028: 624 | XC1028: 625 | XD1028: 626 | XE1028: 627 | XF1028: 628 | XG1028: 629 | XH1028: 630 | XI1028: 631 | XJ1028: 632 | XK1028: 633 | XL1028: 634 | XM1028: 635 | XN1028: 636 | XO1028: 637 | XP1028: 638 | XQ1028: 639 | XR1028: 640 | XS1028: 641 | XT1028: 642 | XU1028: 643 | XV1028: 644 | XW1028: 645 | XX1028: 646 | XY1028: 647 | XZ1028: 648 | YA1028: 649 | YB1028: 650 | YC1028: 651 | YD1028: 652 | YE1028: 653 | YF1028: 654 | YG1028: 655 | YH1028: 656 | YI1028: 657 | YJ1028: 658 | YK1028: 659 | YL1028: 660 | YM1028: 661 | YN1028: 662 | YO1028: 663 | YP1028: 664 | YQ1028: 665 | YR1028: 666 | YS1028: 667 | YT1028: 668 | YU1028: 669 | YV1028: 670 | YW1028: 671 | YX1028: 672 | YY1028: 673 | YZ1028: 674 | ZA1028: 675 | ZB1028: 676 | ZC1028: 677 | ZD1028: 678 | ZE1028: 679 | ZF1028: 680 | ZG1028: 681 | ZH1028: 682 | ZI1028: 683 | ZJ1028: 684 | ZK1028: 685 | ZL1028: 686 | ZM1028: 687 | ZN1028: 688 | ZO1028: 689 | ZP1028: 690 | ZQ1028: 691 | ZR1028: 692 | ZS1028: 693 | ZT1028: 694 | ZU1028: 695 | ZV1028: 696 | ZW1028: 697 | ZX1028: 698 | ZY1028: 699 | ZZ1028: 700 | AAA1028: 701 | AAB1028: 702 | AAC1028: 703 | AAD1028: 704 | AAE1028: 705 | AAF1028: 706 | AAG1028: 707 | AAH1028: 708 | AAI1028: 709 | AAJ1028: 710 | AAK1028: 711 | AAL1028: 712 | AAM1028: 713 | AAN1028: 714 | AAO1028: 715 | AAP1028: 716 | AAQ1028: 717 | AAR1028: 718 | AAS1028: 719 | AAT1028: 720 | AAU1028: 721 | AAV1028: 722 | AAW1028: 723 | AAX1028: 724 | AAY1028: 725 | AAZ1028: 726 | ABA1028: 727 | ABB1028: 728 | ABC1028: 729 | ABD1028: 730 | ABE1028: 731 | ABF1028: 732 | ABG1028: 733 | ABH1028: 734 | ABI1028: 735 | ABJ1028: 736 | ABK1028: 737 | ABL1028: 738 | ABM1028: 739 | ABN1028: 740 | ABO1028: 741 | ABP1028: 742 | ABQ1028: 743 | ABR1028: 744 | ABS1028: 745 | ABT1028: 746 | ABU1028: 747 | ABV1028: 748 | ABW1028: 749 | ABX1028: 750 | ABY1028: 751 | ABZ1028: 752 | ACA1028: 753 | ACB1028: 754 | ACC1028: 755 | ACD1028: 756 | ACE1028: 757 | ACF1028: 758 | ACG1028: 759 | ACH1028: 760 | ACI1028: 761 | ACJ1028: 762 | ACK1028: 763 | ACL1028: 764 | ACM1028: 765 | ACN1028: 766 | ACO1028: 767 | ACP1028: 768 | ACQ1028: 769 | ACR1028: 770 | ACS1028: 771 | ACT1028: 772 | ACU1028: 773 | ACV1028: 774 | ACW1028: 775 | ACX1028: 776 | ACY1028: 777 | ACZ1028: 778 | ADA1028: 779 | ADB1028: 780 | ADC1028: 781 | ADD1028: 782 | ADE1028: 783 | ADF1028: 784 | ADG1028: 785 | ADH1028: 786 | ADI1028: 787 | ADJ1028: 788 | ADK1028: 789 | ADL1028: 790 | ADM1028: 791 | ADN1028: 792 | ADO1028: 793 | ADP1028: 794 | ADQ1028: 795 | ADR1028: 796 | ADS1028: 797 | ADT1028: 798 | ADU1028: 799 | ADV1028: 800 | ADW1028: 801 | ADX1028: 802 | ADY1028: 803 | ADZ1028: 804 | AEA1028: 805 | AEB1028: 806 | AEC1028: 807 | AED1028: 808 | AEE1028: 809 | AEF1028: 810 | AEG1028: 811 | AEH1028: 812 | AEI1028: 813 | AEJ1028: 814 | AEK1028: 815 | AEL1028: 816 | AEM1028: 817 | AEN1028: 818 | AEO1028: 819 | AEP1028: 820 | AEQ1028: 821 | AER1028: 822 | AES1028: 823 | AET1028: 824 | AEU1028: 825 | AEV1028: 826 | AEW1028: 827 | AEX1028: 828 | AEY1028: 829 | AEZ1028: 830 | AFA1028: 831 | AFB1028: 832 | AFC1028: 833 | AFD1028: 834 | AFE1028: 835 | AFF1028: 836 | AFG1028: 837 | AFH1028: 838 | AFI1028: 839 | AFJ1028: 840 | AFK1028: 841 | AFL1028: 842 | AFM1028: 843 | AFN1028: 844 | AFO1028: 845 | AFP1028: 846 | AFQ1028: 847 | AFR1028: 848 | AFS1028: 849 | AFT1028: 850 | AFU1028: 851 | AFV1028: 852 | AFW1028: 853 | AFX1028: 854 | AFY1028: 855 | AFZ1028: 856 | AGA1028: 857 | AGB1028: 858 | AGC1028: 859 | AGD1028: 860 | AGE1028: 861 | AGF1028: 862 | AGG1028: 863 | AGH1028: 864 | AGI1028: 865 | AGJ1028: 866 | AGK1028: 867 | AGL1028: 868 | AGM1028: 869 | AGN1028: 870 | AGO1028: 871 | AGP1028: 872 | AGQ1028: 873 | AGR1028: 874 | AGS1028: 875 | AGT1028: 876 | AGU1028: 877 | AGV1028: 878 | AGW1028: 879 | AGX1028: 880 | AGY1028: 881 | AGZ1028: 882 | AHA1028: 883 | AHB1028: 884 | AHC1028: 885 | AHD1028: 886 | AHE1028: 887 | AHF1028: 888 | AHG1028: 889 | AHH1028: 890 | AHI1028: 891 | AHJ1028: 892 | AHK1028: 893 | AHL1028: 894 | AHM1028: 895 | AHN1028: 896 | AHO1028: 897 | AHP1028: 898 | AHQ1028: 899 | AHR1028: 900 | AHS1028: 901 | AHT1028: 902 | AHU1028: 903 | AHV1028: 904 | AHW1028: 905 | AHX1028: 906 | AHY1028: 907 | AHZ1028: 908 | AIA1028: 909 | AIB1028: 910 | AIC1028: 911 | AID1028: 912 | AIE1028: 913 | AIF1028: 914 | AIG1028: 915 | AIH1028: 916 | AII1028: 917 | AIJ1028: 918 | AIK1028: 919 | AIL1028: 920 | AIM1028: 921 | AIN1028: 922 | AIO1028: 923 | AIP1028: 924 | AIQ1028: 925 | AIR1028: 926 | AIS1028: 927 | AIT1028: 928 | AIU1028: 929 | AIV1028: 930 | AIW1028: 931 | AIX1028: 932 | AIY1028: 933 | AIZ1028: 934 | AJA1028: 935 | AJB1028: 936 | AJC1028: 937 | AJD1028: 938 | AJE1028: 939 | AJF1028: 940 | AJG1028: 941 | AJH1028: 942 | AJI1028: 943 | AJJ1028: 944 | AJK1028: 945 | AJL1028: 946 | AJM1028: 947 | AJN1028: 948 | AJO1028: 949 | AJP1028: 950 | AJQ1028: 951 | AJR1028: 952 | AJS1028: 953 | AJT1028: 954 | AJU1028: 955 | AJV1028: 956 | AJW1028: 957 | AJX1028: 958 | AJY1028: 959 | AJZ1028: 960 | AKA1028: 961 | AKB1028: 962 | AKC1028: 963 | AKD1028: 964 | AKE1028: 965 | AKF1028: 966 | AKG1028: 967 | AKH1028: 968 | AKI1028: 969 | AKJ1028: 970 | AKK1028: 971 | AKL1028: 972 | AKM1028: 973 | AKN1028: 974 | AKO1028: 975 | AKP1028: 976 | AKQ1028: 977 | AKR1028: 978 | AKS1028: 979 | AKT1028: 980 | AKU1028: 981 | AKV1028: 982 | AKW1028: 983 | AKX1028: 984 | AKY1028: 985 | AKZ1028: 986 | ALA1028: 987 | ALB1028: 988 | ALC1028: 989 | ALD1028: 990 | ALE1028: 991 | ALF1028: 992 | ALG1028: 993 | ALH1028: 994 | ALI1028: 995 | ALJ1028: 996 | ALK1028: 997 | ALL1028: 998 | ALM1028: 999 | ALN1028: 1000 | ALO1028: 1001 | ALP1028: 1002 | ALQ1028: 1003 | ALR1028: 1004 | ALS1028: 1005 | ALT1028: 1006 | ALU1028: 1007 | ALV1028: 1008 | ALW1028: 1009 | ALX1028: 1010 | ALY1028: 1011 | ALZ1028: 1012 | AMA1028: 1013 | AMB1028: 1014 | AMC1028: 1015 | AMD1028: 1016 | AME1028: 1017 | AMF1028: 1018 | AMG1028: 1019 | AMH1028: 1020 | AMI1028: 1021 | AMJ1028: 1022 | AMK1028: 1023
A1029: hi | B1029: =$P$2 -> 1 | C1029: =$P$3 -> 2 | D1029: =$P$4 -> 3 | E1029: =$P$5 -> 4 | F1029: =$P$6 -> 5 | G1029: =$P$7 -> 6 | H1029: =$P$8 -> 7 | I1029: =$P$9 -> 8 | J1029: =$P$10 -> 9 | K1029: =$P$11 -> 10 | L1029: =$P$12 -> 11 | M1029: =$P$13 -> 12 | N1029: =$P$14 -> 13 | O1029: =$P$15 -> 14 | P1029: =$P$16 -> 15 | Q1029: =$P$17 -> 16.5 | R1029: =$P$18 -> 18.5 | S1029: =$P$19 -> 20.5 | T1029: =$P$20 -> 22.5 | U1029: =$P$21 -> 24.5 | V1029: =$P$22 -> 26.5 | W1029: =$P$23 -> 28.5 | X1029: =$P$24 -> 30.5 | Y1029: =$P$25 -> 32.5 | Z1029: =$P$26 -> 34.5 | AA1029: =$P$27 -> 36.5 | AB1029: =$P$28 -> 38.5 | AC1029: =$P$29 -> 40.5 | AD1029: =$P$30 -> 42.5 | AE1029: =$P$31 -> 44.5 | AF1029: =$P$32 -> 46.5 | AG1029: =$P$33 -> 49.5 | AH1029: =$P$34 -> 53.5 | AI1029: =$P$35 -> 57.5 | AJ1029: =$P$36 -> 61.5 | AK1029: =$P$37 -> 65.5 | AL1029: =$P$38 -> 69.5 | AM1029: =$P$39 -> 73.5 | AN1029: =$P$40 -> 77.5 | AO1029: =$P$41 -> 81.5 | AP1029: =$P$42 -> 85.5 | AQ1029: =$P$43 -> 89.5 | AR1029: =$P$44 -> 93.5 | AS1029: =$P$45 -> 97.5 | AT1029: =$P$46 -> 101.5 | AU1029: =$P$47 -> 105.5 | AV1029: =$P$48 -> 109.5 | AW1029: =$P$49 -> 115.5 | AX1029: =$P$50 -> 123.5 | AY1029: =$P$51 -> 131.5 | AZ1029: =$P$52 -> 139.5 | BA1029: =$P$53 -> 147.5 | BB1029: =$P$54 -> 155.5 | BC1029: =$P$55 -> 163.5 | BD1029: =$P$56 -> 171.5 | BE1029: =$P$57 -> 179.5 | BF1029: =$P$58 -> 187.5 | BG1029: =$P$59 -> 195.5 | BH1029: =$P$60 -> 203.5 | BI1029: =$P$61 -> 211.5 | BJ1029: =$P$62 -> 219.5 | BK1029: =$P$63 -> 227.5 | BL1029: =$P$64 -> 235.5 | BM1029: =$P$65 -> 247.5 | BN1029: =#REF! ->  | BO1029: =#REF! ->  | BP1029: =#REF! ->  | BQ1029: =#REF! ->  | BR1029: =#REF! ->  | BS1029: =#REF! ->  | BT1029: =#REF! ->  | BU1029: =#REF! ->  | BV1029: =#REF! ->  | BW1029: =#REF! ->  | BX1029: =#REF! ->  | BY1029: =#REF! ->  | BZ1029: =#REF! ->  | CA1029: =#REF! ->  | CB1029: =#REF! ->  | CC1029: =#REF! ->  | CD1029: =#REF! ->  | CE1029: =#REF! ->  | CF1029: =#REF! ->  | CG1029: =#REF! ->  | CH1029: =#REF! ->  | CI1029: =#REF! ->  | CJ1029: =#REF! ->  | CK1029: =#REF! ->  | CL1029: =#REF! ->  | CM1029: =#REF! ->  | CN1029: =#REF! ->  | CO1029: =#REF! ->  | CP1029: =#REF! ->  | CQ1029: =#REF! ->  | CR1029: =#REF! ->  | CS1029: =#REF! ->  | CT1029: =#REF! ->  | CU1029: =#REF! ->  | CV1029: =#REF! ->  | CW1029: =#REF! ->  | CX1029: =#REF! ->  | CY1029: =#REF! ->  | CZ1029: =#REF! ->  | DA1029: =#REF! ->  | DB1029: =#REF! ->  | DC1029: =#REF! ->  | DD1029: =#REF! ->  | DE1029: =#REF! ->  | DF1029: =#REF! ->  | DG1029: =#REF! ->  | DH1029: =#REF! ->  | DI1029: =#REF! ->  | DJ1029: =#REF! ->  | DK1029: =#REF! ->  | DL1029: =#REF! ->  | DM1029: =#REF! ->  | DN1029: =#REF! ->  | DO1029: =#REF! ->  | DP1029: =#REF! ->  | DQ1029: =#REF! ->  | DR1029: =#REF! ->  | DS1029: =#REF! ->  | DT1029: =#REF! ->  | DU1029: =#REF! ->  | DV1029: =#REF! ->  | DW1029: =#REF! ->  | DX1029: =#REF! ->  | DY1029: =#REF! ->  | DZ1029: =#REF! ->  | EA1029: =#REF! ->  | EB1029: =#REF! ->  | EC1029: =#REF! ->  | ED1029: =#REF! ->  | EE1029: =#REF! ->  | EF1029: =#REF! ->  | EG1029: =#REF! ->  | EH1029: =#REF! ->  | EI1029: =#REF! ->  | EJ1029: =#REF! ->  | EK1029: =#REF! ->  | EL1029: =#REF! ->  | EM1029: =#REF! ->  | EN1029: =#REF! ->  | EO1029: =#REF! ->  | EP1029: =#REF! ->  | EQ1029: =#REF! ->  | ER1029: =#REF! ->  | ES1029: =#REF! ->  | ET1029: =#REF! ->  | EU1029: =#REF! ->  | EV1029: =#REF! ->  | EW1029: =#REF! ->  | EX1029: =#REF! ->  | EY1029: =#REF! ->  | EZ1029: =#REF! ->  | FA1029: =#REF! ->  | FB1029: =#REF! ->  | FC1029: =#REF! ->  | FD1029: =#REF! ->  | FE1029: =#REF! ->  | FF1029: =#REF! ->  | FG1029: =#REF! ->  | FH1029: =#REF! ->  | FI1029: =#REF! ->  | FJ1029: =#REF! ->  | FK1029: =#REF! ->  | FL1029: =#REF! ->  | FM1029: =#REF! ->  | FN1029: =#REF! ->  | FO1029: =#REF! ->  | FP1029: =#REF! ->  | FQ1029: =#REF! ->  | FR1029: =#REF! ->  | FS1029: =#REF! ->  | FT1029: =#REF! ->  | FU1029: =#REF! ->  | FV1029: =#REF! ->  | FW1029: =#REF! ->  | FX1029: =#REF! ->  | FY1029: =#REF! ->  | FZ1029: =#REF! ->  | GA1029: =#REF! ->  | GB1029: =#REF! ->  | GC1029: =#REF! ->  | GD1029: =#REF! ->  | GE1029: =#REF! ->  | GF1029: =#REF! ->  | GG1029: =#REF! ->  | GH1029: =#REF! ->  | GI1029: =#REF! ->  | GJ1029: =#REF! ->  | GK1029: =#REF! ->  | GL1029: =#REF! ->  | GM1029: =#REF! ->  | GN1029: =#REF! ->  | GO1029: =#REF! ->  | GP1029: =#REF! ->  | GQ1029: =#REF! ->  | GR1029: =#REF! ->  | GS1029: =#REF! ->  | GT1029: =#REF! ->  | GU1029: =#REF! ->  | GV1029: =#REF! ->  | GW1029: =#REF! ->  | GX1029: =#REF! ->  | GY1029: =#REF! ->  | GZ1029: =#REF! ->  | HA1029: =#REF! ->  | HB1029: =#REF! ->  | HC1029: =#REF! ->  | HD1029: =#REF! ->  | HE1029: =#REF! ->  | HF1029: =#REF! ->  | HG1029: =#REF! ->  | HH1029: =#REF! ->  | HI1029: =#REF! ->  | HJ1029: =#REF! ->  | HK1029: =#REF! ->  | HL1029: =#REF! ->  | HM1029: =#REF! ->  | HN1029: =#REF! ->  | HO1029: =#REF! ->  | HP1029: =#REF! ->  | HQ1029: =#REF! ->  | HR1029: =#REF! ->  | HS1029: =#REF! ->  | HT1029: =#REF! ->  | HU1029: =#REF! ->  | HV1029: =#REF! ->  | HW1029: =#REF! ->  | HX1029: =#REF! ->  | HY1029: =#REF! ->  | HZ1029: =#REF! ->  | IA1029: =#REF! ->  | IB1029: =#REF! ->  | IC1029: =#REF! ->  | ID1029: =#REF! ->  | IE1029: =#REF! ->  | IF1029: =#REF! ->  | IG1029: =#REF! ->  | IH1029: =#REF! ->  | II1029: =#REF! ->  | IJ1029: =#REF! ->  | IK1029: =#REF! ->  | IL1029: =#REF! ->  | IM1029: =#REF! ->  | IN1029: =#REF! ->  | IO1029: =#REF! ->  | IP1029: =#REF! ->  | IQ1029: =#REF! ->  | IR1029: =#REF! ->  | IS1029: =#REF! ->  | IT1029: =#REF! ->  | IU1029: =#REF! ->  | IV1029: =#REF! ->  | IW1029: =#REF! ->  | IX1029: =#REF! ->  | IY1029: =#REF! ->  | IZ1029: =#REF! ->  | JA1029: =#REF! ->  | JB1029: =#REF! ->  | JC1029: =#REF! ->  | JD1029: =#REF! ->  | JE1029: =#REF! ->  | JF1029: =#REF! ->  | JG1029: =#REF! ->  | JH1029: =#REF! ->  | JI1029: =#REF! ->  | JJ1029: =#REF! ->  | JK1029: =#REF! ->  | JL1029: =#REF! ->  | JM1029: =#REF! ->  | JN1029: =#REF! ->  | JO1029: =#REF! ->  | JP1029: =#REF! ->  | JQ1029: =#REF! ->  | JR1029: =#REF! ->  | JS1029: =#REF! ->  | JT1029: =#REF! ->  | JU1029: =#REF! ->  | JV1029: =#REF! ->  | JW1029: =#REF! ->  | JX1029: =#REF! ->  | JY1029: =#REF! ->  | JZ1029: =#REF! ->  | KA1029: =#REF! ->  | KB1029: =#REF! ->  | KC1029: =#REF! ->  | KD1029: =#REF! ->  | KE1029: =#REF! ->  | KF1029: =#REF! ->  | KG1029: =#REF! ->  | KH1029: =#REF! ->  | KI1029: =#REF! ->  | KJ1029: =#REF! ->  | KK1029: =#REF! ->  | KL1029: =#REF! ->  | KM1029: =#REF! ->  | KN1029: =#REF! ->  | KO1029: =#REF! ->  | KP1029: =#REF! ->  | KQ1029: =#REF! ->  | KR1029: =#REF! ->  | KS1029: =#REF! ->  | KT1029: =#REF! ->  | KU1029: =#REF! ->  | KV1029: =#REF! ->  | KW1029: =#REF! ->  | KX1029: =#REF! ->  | KY1029: =#REF! ->  | KZ1029: =#REF! ->  | LA1029: =#REF! ->  | LB1029: =#REF! ->  | LC1029: =#REF! ->  | LD1029: =#REF! ->  | LE1029: =#REF! ->  | LF1029: =#REF! ->  | LG1029: =#REF! ->  | LH1029: =#REF! ->  | LI1029: =#REF! ->  | LJ1029: =#REF! ->  | LK1029: =#REF! ->  | LL1029: =#REF! ->  | LM1029: =#REF! ->  | LN1029: =#REF! ->  | LO1029: =#REF! ->  | LP1029: =#REF! ->  | LQ1029: =#REF! ->  | LR1029: =#REF! ->  | LS1029: =#REF! ->  | LT1029: =#REF! ->  | LU1029: =#REF! ->  | LV1029: =#REF! ->  | LW1029: =#REF! ->  | LX1029: =#REF! ->  | LY1029: =#REF! ->  | LZ1029: =#REF! ->  | MA1029: =#REF! ->  | MB1029: =#REF! ->  | MC1029: =#REF! ->  | MD1029: =#REF! ->  | ME1029: =#REF! ->  | MF1029: =#REF! ->  | MG1029: =#REF! ->  | MH1029: =#REF! ->  | MI1029: =#REF! ->  | MJ1029: =#REF! ->  | MK1029: =#REF! ->  | ML1029: =#REF! ->  | MM1029: =#REF! ->  | MN1029: =#REF! ->  | MO1029: =#REF! ->  | MP1029: =#REF! ->  | MQ1029: =#REF! ->  | MR1029: =#REF! ->  | MS1029: =#REF! ->  | MT1029: =#REF! ->  | MU1029: =#REF! ->  | MV1029: =#REF! ->  | MW1029: =#REF! ->  | MX1029: =#REF! ->  | MY1029: =#REF! ->  | MZ1029: =#REF! ->  | NA1029: =#REF! ->  | NB1029: =#REF! ->  | NC1029: =#REF! ->  | ND1029: =#REF! ->  | NE1029: =#REF! ->  | NF1029: =#REF! ->  | NG1029: =#REF! ->  | NH1029: =#REF! ->  | NI1029: =#REF! ->  | NJ1029: =#REF! ->  | NK1029: =#REF! ->  | NL1029: =#REF! ->  | NM1029: =#REF! ->  | NN1029: =#REF! ->  | NO1029: =#REF! ->  | NP1029: =#REF! ->  | NQ1029: =#REF! ->  | NR1029: =#REF! ->  | NS1029: =#REF! ->  | NT1029: =#REF! ->  | NU1029: =#REF! ->  | NV1029: =#REF! ->  | NW1029: =#REF! ->  | NX1029: =#REF! ->  | NY1029: =#REF! ->  | NZ1029: =#REF! ->  | OA1029: =#REF! ->  | OB1029: =#REF! ->  | OC1029: =#REF! ->  | OD1029: =#REF! ->  | OE1029: =#REF! ->  | OF1029: =#REF! ->  | OG1029: =#REF! ->  | OH1029: =#REF! ->  | OI1029: =#REF! ->  | OJ1029: =#REF! ->  | OK1029: =#REF! ->  | OL1029: =#REF! ->  | OM1029: =#REF! ->  | ON1029: =#REF! ->  | OO1029: =#REF! ->  | OP1029: =#REF! ->  | OQ1029: =#REF! ->  | OR1029: =#REF! ->  | OS1029: =#REF! ->  | OT1029: =#REF! ->  | OU1029: =#REF! ->  | OV1029: =#REF! ->  | OW1029: =#REF! ->  | OX1029: =#REF! ->  | OY1029: =#REF! ->  | OZ1029: =#REF! ->  | PA1029: =#REF! ->  | PB1029: =#REF! ->  | PC1029: =#REF! ->  | PD1029: =#REF! ->  | PE1029: =#REF! ->  | PF1029: =#REF! ->  | PG1029: =#REF! ->  | PH1029: =#REF! ->  | PI1029: =#REF! ->  | PJ1029: =#REF! ->  | PK1029: =#REF! ->  | PL1029: =#REF! ->  | PM1029: =#REF! ->  | PN1029: =#REF! ->  | PO1029: =#REF! ->  | PP1029: =#REF! ->  | PQ1029: =#REF! ->  | PR1029: =#REF! ->  | PS1029: =#REF! ->  | PT1029: =#REF! ->  | PU1029: =#REF! ->  | PV1029: =#REF! ->  | PW1029: =#REF! ->  | PX1029: =#REF! ->  | PY1029: =#REF! ->  | PZ1029: =#REF! ->  | QA1029: =#REF! ->  | QB1029: =#REF! ->  | QC1029: =#REF! ->  | QD1029: =#REF! ->  | QE1029: =#REF! ->  | QF1029: =#REF! ->  | QG1029: =#REF! ->  | QH1029: =#REF! ->  | QI1029: =#REF! ->  | QJ1029: =#REF! ->  | QK1029: =#REF! ->  | QL1029: =#REF! ->  | QM1029: =#REF! ->  | QN1029: =#REF! ->  | QO1029: =#REF! ->  | QP1029: =#REF! ->  | QQ1029: =#REF! ->  | QR1029: =#REF! ->  | QS1029: =#REF! ->  | QT1029: =#REF! ->  | QU1029: =#REF! ->  | QV1029: =#REF! ->  | QW1029: =#REF! ->  | QX1029: =#REF! ->  | QY1029: =#REF! ->  | QZ1029: =#REF! ->  | RA1029: =#REF! ->  | RB1029: =#REF! ->  | RC1029: =#REF! ->  | RD1029: =#REF! ->  | RE1029: =#REF! ->  | RF1029: =#REF! ->  | RG1029: =#REF! ->  | RH1029: =#REF! ->  | RI1029: =#REF! ->  | RJ1029: =#REF! ->  | RK1029: =#REF! ->  | RL1029: =#REF! ->  | RM1029: =#REF! ->  | RN1029: =#REF! ->  | RO1029: =#REF! ->  | RP1029: =#REF! ->  | RQ1029: =#REF! ->  | RR1029: =#REF! ->  | RS1029: =#REF! ->  | RT1029: =#REF! ->  | RU1029: =#REF! ->  | RV1029: =#REF! ->  | RW1029: =#REF! ->  | RX1029: =#REF! ->  | RY1029: =#REF! ->  | RZ1029: =#REF! ->  | SA1029: =#REF! ->  | SB1029: =#REF! ->  | SC1029: =#REF! ->  | SD1029: =#REF! ->  | SE1029: =#REF! ->  | SF1029: =#REF! ->  | SG1029: =#REF! ->  | SH1029: =#REF! ->  | SI1029: =#REF! ->  | SJ1029: =#REF! ->  | SK1029: =#REF! ->  | SL1029: =#REF! ->  | SM1029: =#REF! ->  | SN1029: =#REF! ->  | SO1029: =#REF! ->  | SP1029: =#REF! ->  | SQ1029: =#REF! ->  | SR1029: =#REF! ->  | SS1029: =#REF! ->  | ST1029: 3094 | SU1029: 3110 | SV1029: 3126 | SW1029: 3142 | SX1029: 3158 | SY1029: 3174 | SZ1029: 3190 | TA1029: 3206 | TB1029: 3222 | TC1029: 3238 | TD1029: 3254 | TE1029: 3270 | TF1029: 3286 | TG1029: 3302 | TH1029: 3318 | TI1029: 3334 | TJ1029: 3350 | TK1029: 3366 | TL1029: 3382 | TM1029: 3398 | TN1029: 3414 | TO1029: 3430 | TP1029: 3446 | TQ1029: 3462 | TR1029: 3478 | TS1029: 3494 | TT1029: 3510 | TU1029: 3526 | TV1029: 3542 | TW1029: 3558 | TX1029: 3574 | TY1029: 3590 | TZ1029: 3606 | UA1029: 3622 | UB1029: 3638 | UC1029: 3654 | UD1029: 3670 | UE1029: 3686 | UF1029: 3702 | UG1029: 3718 | UH1029: 3734 | UI1029: 3750 | UJ1029: 3766 | UK1029: 3782 | UL1029: 3798 | UM1029: 3814 | UN1029: 3830 | UO1029: 3846 | UP1029: 3862 | UQ1029: 3878 | UR1029: 3894 | US1029: 3910 | UT1029: 3926 | UU1029: 3942 | UV1029: 3958 | UW1029: 3974 | UX1029: 3990 | UY1029: 4006 | UZ1029: 4022 | VA1029: 4038 | VB1029: 4054 | VC1029: 4070 | VD1029: 4086 | VE1029: 4102 | VF1029: 4118 | VG1029: 4134 | VH1029: 4150 | VI1029: 4166 | VJ1029: 4182 | VK1029: 4198 | VL1029: 4214 | VM1029: 4230 | VN1029: 4246 | VO1029: 4262 | VP1029: 4278 | VQ1029: 4294 | VR1029: 4310 | VS1029: 4326 | VT1029: 4342 | VU1029: 4358 | VV1029: 4374 | VW1029: 4390 | VX1029: 4406 | VY1029: 4422 | VZ1029: 4438 | WA1029: 4454 | WB1029: 4470 | WC1029: 4486 | WD1029: 4502 | WE1029: 4518 | WF1029: 4534 | WG1029: 4550 | WH1029: 4566 | WI1029: 4582 | WJ1029: 4598 | WK1029: 4614 | WL1029: 4630 | WM1029: 4646 | WN1029: 4662 | WO1029: 4678 | WP1029: 4694 | WQ1029: 4710 | WR1029: 4726 | WS1029: 4742 | WT1029: 4758 | WU1029: 4774 | WV1029: 4790 | WW1029: 4806 | WX1029: 4822 | WY1029: 4838 | WZ1029: 4854 | XA1029: 4870 | XB1029: 4886 | XC1029: 4902 | XD1029: 4918 | XE1029: 4934 | XF1029: 4950 | XG1029: 4966 | XH1029: 4982 | XI1029: 4998 | XJ1029: 5014 | XK1029: 5030 | XL1029: 5046 | XM1029: 5062 | XN1029: 5078 | XO1029: 5094 | XP1029: 5110 | XQ1029: 5126 | XR1029: 5142 | XS1029: 5158 | XT1029: 5174 | XU1029: 5190 | XV1029: 5206 | XW1029: 5222 | XX1029: 5238 | XY1029: 5254 | XZ1029: 5270 | YA1029: 5286 | YB1029: 5302 | YC1029: 5318 | YD1029: 5334 | YE1029: 5350 | YF1029: 5366 | YG1029: 5382 | YH1029: 5398 | YI1029: 5414 | YJ1029: 5430 | YK1029: 5446 | YL1029: 5462 | YM1029: 5478 | YN1029: 5494 | YO1029: 5510 | YP1029: 5526 | YQ1029: 5542 | YR1029: 5558 | YS1029: 5574 | YT1029: 5590 | YU1029: 5606 | YV1029: 5622 | YW1029: 5638 | YX1029: 5654 | YY1029: 5670 | YZ1029: 5686 | ZA1029: 5702 | ZB1029: 5718 | ZC1029: 5734 | ZD1029: 5750 | ZE1029: 5766 | ZF1029: 5782 | ZG1029: 5798 | ZH1029: 5814 | ZI1029: 5830 | ZJ1029: 5846 | ZK1029: 5862 | ZL1029: 5878 | ZM1029: 5894 | ZN1029: 5910 | ZO1029: 5926 | ZP1029: 5942 | ZQ1029: 5958 | ZR1029: 5974 | ZS1029: 5990 | ZT1029: 6006 | ZU1029: 6022 | ZV1029: 6038 | ZW1029: 6054 | ZX1029: 6070 | ZY1029: 6086 | ZZ1029: 6102 | AAA1029: 6118 | AAB1029: 6134 | AAC1029: 6150 | AAD1029: 6166 | AAE1029: 6182 | AAF1029: 6198 | AAG1029: 6214 | AAH1029: 6230 | AAI1029: 6246 | AAJ1029: 6262 | AAK1029: 6278 | AAL1029: 6294 | AAM1029: 6310 | AAN1029: 6326 | AAO1029: 6342 | AAP1029: 6358 | AAQ1029: 6374 | AAR1029: 6390 | AAS1029: 6406 | AAT1029: 6422 | AAU1029: 6438 | AAV1029: 6454 | AAW1029: 6470 | AAX1029: 6486 | AAY1029: 6502 | AAZ1029: 6518 | ABA1029: 6534 | ABB1029: 6550 | ABC1029: 6566 | ABD1029: 6582 | ABE1029: 6598 | ABF1029: 6614 | ABG1029: 6630 | ABH1029: 6646 | ABI1029: 6662 | ABJ1029: 6678 | ABK1029: 6694 | ABL1029: 6710 | ABM1029: 6726 | ABN1029: 6742 | ABO1029: 6758 | ABP1029: 6774 | ABQ1029: 6790 | ABR1029: 6806 | ABS1029: 6822 | ABT1029: 6838 | ABU1029: 6854 | ABV1029: 6870 | ABW1029: 6886 | ABX1029: 6902 | ABY1029: 6918 | ABZ1029: 6934 | ACA1029: 6950 | ACB1029: 6966 | ACC1029: 6982 | ACD1029: 6998 | ACE1029: 7014 | ACF1029: 7030 | ACG1029: 7046 | ACH1029: 7062 | ACI1029: 7078 | ACJ1029: 7094 | ACK1029: 7110 | ACL1029: 7126 | ACM1029: 7142 | ACN1029: 7158 | ACO1029: 7182 | ACP1029: 7214 | ACQ1029: 7246 | ACR1029: 7278 | ACS1029: 7310 | ACT1029: 7342 | ACU1029: 7374 | ACV1029: 7406 | ACW1029: 7438 | ACX1029: 7470 | ACY1029: 7502 | ACZ1029: 7534 | ADA1029: 7566 | ADB1029: 7598 | ADC1029: 7630 | ADD1029: 7662 | ADE1029: 7694 | ADF1029: 7726 | ADG1029: 7758 | ADH1029: 7790 | ADI1029: 7822 | ADJ1029: 7854 | ADK1029: 7886 | ADL1029: 7918 | ADM1029: 7950 | ADN1029: 7982 | ADO1029: 8014 | ADP1029: 8046 | ADQ1029: 8078 | ADR1029: 8110 | ADS1029: 8142 | ADT1029: 8174 | ADU1029: 8206 | ADV1029: 8238 | ADW1029: 8270 | ADX1029: 8302 | ADY1029: 8334 | ADZ1029: 8366 | AEA1029: 8398 | AEB1029: 8430 | AEC1029: 8462 | AED1029: 8494 | AEE1029: 8526 | AEF1029: 8558 | AEG1029: 8590 | AEH1029: 8622 | AEI1029: 8654 | AEJ1029: 8686 | AEK1029: 8718 | AEL1029: 8750 | AEM1029: 8782 | AEN1029: 8814 | AEO1029: 8846 | AEP1029: 8878 | AEQ1029: 8910 | AER1029: 8942 | AES1029: 8974 | AET1029: 9006 | AEU1029: 9038 | AEV1029: 9070 | AEW1029: 9102 | AEX1029: 9134 | AEY1029: 9166 | AEZ1029: 9198 | AFA1029: 9230 | AFB1029: 9262 | AFC1029: 9294 | AFD1029: 9326 | AFE1029: 9358 | AFF1029: 9390 | AFG1029: 9422 | AFH1029: 9454 | AFI1029: 9486 | AFJ1029: 9518 | AFK1029: 9550 | AFL1029: 9582 | AFM1029: 9614 | AFN1029: 9646 | AFO1029: 9678 | AFP1029: 9710 | AFQ1029: 9742 | AFR1029: 9774 | AFS1029: 9806 | AFT1029: 9838 | AFU1029: 9870 | AFV1029: 9902 | AFW1029: 9934 | AFX1029: 9966 | AFY1029: 9998 | AFZ1029: 10030 | AGA1029: 10062 | AGB1029: 10094 | AGC1029: 10126 | AGD1029: 10158 | AGE1029: 10190 | AGF1029: 10222 | AGG1029: 10254 | AGH1029: 10286 | AGI1029: 10318 | AGJ1029: 10350 | AGK1029: 10382 | AGL1029: 10414 | AGM1029: 10446 | AGN1029: 10478 | AGO1029: 10510 | AGP1029: 10542 | AGQ1029: 10574 | AGR1029: 10606 | AGS1029: 10638 | AGT1029: 10670 | AGU1029: 10702 | AGV1029: 10734 | AGW1029: 10766 | AGX1029: 10798 | AGY1029: 10830 | AGZ1029: 10862 | AHA1029: 10894 | AHB1029: 10926 | AHC1029: 10958 | AHD1029: 10990 | AHE1029: 11022 | AHF1029: 11054 | AHG1029: 11086 | AHH1029: 11118 | AHI1029: 11150 | AHJ1029: 11182 | AHK1029: 11214 | AHL1029: 11246 | AHM1029: 11278 | AHN1029: 11310 | AHO1029: 11342 | AHP1029: 11374 | AHQ1029: 11406 | AHR1029: 11438 | AHS1029: 11470 | AHT1029: 11502 | AHU1029: 11534 | AHV1029: 11566 | AHW1029: 11598 | AHX1029: 11630 | AHY1029: 11662 | AHZ1029: 11694 | AIA1029: 11726 | AIB1029: 11758 | AIC1029: 11790 | AID1029: 11822 | AIE1029: 11854 | AIF1029: 11886 | AIG1029: 11918 | AIH1029: 11950 | AII1029: 11982 | AIJ1029: 12014 | AIK1029: 12046 | AIL1029: 12078 | AIM1029: 12110 | AIN1029: 12142 | AIO1029: 12174 | AIP1029: 12206 | AIQ1029: 12238 | AIR1029: 12270 | AIS1029: 12302 | AIT1029: 12334 | AIU1029: 12366 | AIV1029: 12398 | AIW1029: 12430 | AIX1029: 12462 | AIY1029: 12494 | AIZ1029: 12526 | AJA1029: 12558 | AJB1029: 12590 | AJC1029: 12622 | AJD1029: 12654 | AJE1029: 12686 | AJF1029: 12718 | AJG1029: 12750 | AJH1029: 12782 | AJI1029: 12814 | AJJ1029: 12846 | AJK1029: 12878 | AJL1029: 12910 | AJM1029: 12942 | AJN1029: 12974 | AJO1029: 13006 | AJP1029: 13038 | AJQ1029: 13070 | AJR1029: 13102 | AJS1029: 13134 | AJT1029: 13166 | AJU1029: 13198 | AJV1029: 13230 | AJW1029: 13262 | AJX1029: 13294 | AJY1029: 13326 | AJZ1029: 13358 | AKA1029: 13390 | AKB1029: 13422 | AKC1029: 13454 | AKD1029: 13486 | AKE1029: 13518 | AKF1029: 13550 | AKG1029: 13582 | AKH1029: 13614 | AKI1029: 13646 | AKJ1029: 13678 | AKK1029: 13710 | AKL1029: 13742 | AKM1029: 13774 | AKN1029: 13806 | AKO1029: 13838 | AKP1029: 13870 | AKQ1029: 13902 | AKR1029: 13934 | AKS1029: 13966 | AKT1029: 13998 | AKU1029: 14030 | AKV1029: 14062 | AKW1029: 14094 | AKX1029: 14126 | AKY1029: 14158 | AKZ1029: 14190 | ALA1029: 14222 | ALB1029: 14254 | ALC1029: 14286 | ALD1029: 14318 | ALE1029: 14350 | ALF1029: 14382 | ALG1029: 14414 | ALH1029: 14446 | ALI1029: 14478 | ALJ1029: 14510 | ALK1029: 14542 | ALL1029: 14574 | ALM1029: 14606 | ALN1029: 14638 | ALO1029: 14670 | ALP1029: 14702 | ALQ1029: 14734 | ALR1029: 14766 | ALS1029: 14798 | ALT1029: 14830 | ALU1029: 14862 | ALV1029: 14894 | ALW1029: 14926 | ALX1029: 14958 | ALY1029: 14990 | ALZ1029: 15022 | AMA1029: 15054 | AMB1029: 15086 | AMC1029: 15118 | AMD1029: 15150 | AME1029: 15182 | AMF1029: 15214 | AMG1029: 15246 | AMH1029: 15278 | AMI1029: 15310 | AMJ1029: 15342 | AMK1029: 15390
A1030: lo | B1030: =$N$2 -> 0 | C1030: =$N$3 -> 1 | D1030: =$N$4 -> 2 | E1030: =$N$5 -> 3 | F1030: =$N$6 -> 4 | G1030: =$N$7 -> 5 | H1030: =$N$8 -> 6 | I1030: =$N$9 -> 7 | J1030: =$N$10 -> 8 | K1030: =$N$11 -> 9 | L1030: =$N$12 -> 10 | M1030: =$N$13 -> 11 | N1030: =$N$14 -> 12 | O1030: =$N$15 -> 13 | P1030: =$N$16 -> 14 | Q1030: =$N$17 -> 15 | R1030: =$N$18 -> 16.5 | S1030: =$N$19 -> 18.5 | T1030: =$N$20 -> 20.5 | U1030: =$N$21 -> 22.5 | V1030: =$N$22 -> 24.5 | W1030: =$N$23 -> 26.5 | X1030: =$N$24 -> 28.5 | Y1030: =$N$25 -> 30.5 | Z1030: =$N$26 -> 32.5 | AA1030: =$N$27 -> 34.5 | AB1030: =$N$28 -> 36.5 | AC1030: =$N$29 -> 38.5 | AD1030: =$N$30 -> 40.5 | AE1030: =$N$31 -> 42.5 | AF1030: =$N$32 -> 44.5 | AG1030: =$N$33 -> 46.5 | AH1030: =$N$34 -> 49.5 | AI1030: =$N$35 -> 53.5 | AJ1030: =$N$36 -> 57.5 | AK1030: =$N$37 -> 61.5 | AL1030: =$N$38 -> 65.5 | AM1030: =$N$39 -> 69.5 | AN1030: =$N$40 -> 73.5 | AO1030: =$N$41 -> 77.5 | AP1030: =$N$42 -> 81.5 | AQ1030: =$N$43 -> 85.5 | AR1030: =$N$44 -> 89.5 | AS1030: =$N$45 -> 93.5 | AT1030: =$N$46 -> 97.5 | AU1030: =$N$47 -> 101.5 | AV1030: =$N$48 -> 105.5 | AW1030: =$N$49 -> 109.5 | AX1030: =$N$50 -> 115.5 | AY1030: =$N$51 -> 123.5 | AZ1030: =$N$52 -> 131.5 | BA1030: =$N$53 -> 139.5 | BB1030: =$N$54 -> 147.5 | BC1030: =$N$55 -> 155.5 | BD1030: =$N$56 -> 163.5 | BE1030: =$N$57 -> 171.5 | BF1030: =$N$58 -> 179.5 | BG1030: =$N$59 -> 187.5 | BH1030: =$N$60 -> 195.5 | BI1030: =$N$61 -> 203.5 | BJ1030: =$N$62 -> 211.5 | BK1030: =$N$63 -> 219.5 | BL1030: =$N$64 -> 227.5 | BM1030: =$N$65 -> 235.5 | BN1030: =#REF! ->  | BO1030: =#REF! ->  | BP1030: =#REF! ->  | BQ1030: =#REF! ->  | BR1030: =#REF! ->  | BS1030: =#REF! ->  | BT1030: =#REF! ->  | BU1030: =#REF! ->  | BV1030: =#REF! ->  | BW1030: =#REF! ->  | BX1030: =#REF! ->  | BY1030: =#REF! ->  | BZ1030: =#REF! ->  | CA1030: =#REF! ->  | CB1030: =#REF! ->  | CC1030: =#REF! ->  | CD1030: =#REF! ->  | CE1030: =#REF! ->  | CF1030: =#REF! ->  | CG1030: =#REF! ->  | CH1030: =#REF! ->  | CI1030: =#REF! ->  | CJ1030: =#REF! ->  | CK1030: =#REF! ->  | CL1030: =#REF! ->  | CM1030: =#REF! ->  | CN1030: =#REF! ->  | CO1030: =#REF! ->  | CP1030: =#REF! ->  | CQ1030: =#REF! ->  | CR1030: =#REF! ->  | CS1030: =#REF! ->  | CT1030: =#REF! ->  | CU1030: =#REF! ->  | CV1030: =#REF! ->  | CW1030: =#REF! ->  | CX1030: =#REF! ->  | CY1030: =#REF! ->  | CZ1030: =#REF! ->  | DA1030: =#REF! ->  | DB1030: =#REF! ->  | DC1030: =#REF! ->  | DD1030: =#REF! ->  | DE1030: =#REF! ->  | DF1030: =#REF! ->  | DG1030: =#REF! ->  | DH1030: =#REF! ->  | DI1030: =#REF! ->  | DJ1030: =#REF! ->  | DK1030: =#REF! ->  | DL1030: =#REF! ->  | DM1030: =#REF! ->  | DN1030: =#REF! ->  | DO1030: =#REF! ->  | DP1030: =#REF! ->  | DQ1030: =#REF! ->  | DR1030: =#REF! ->  | DS1030: =#REF! ->  | DT1030: =#REF! ->  | DU1030: =#REF! ->  | DV1030: =#REF! ->  | DW1030: =#REF! ->  | DX1030: =#REF! ->  | DY1030: =#REF! ->  | DZ1030: =#REF! ->  | EA1030: =#REF! ->  | EB1030: =#REF! ->  | EC1030: =#REF! ->  | ED1030: =#REF! ->  | EE1030: =#REF! ->  | EF1030: =#REF! ->  | EG1030: =#REF! ->  | EH1030: =#REF! ->  | EI1030: =#REF! ->  | EJ1030: =#REF! ->  | EK1030: =#REF! ->  | EL1030: =#REF! ->  | EM1030: =#REF! ->  | EN1030: =#REF! ->  | EO1030: =#REF! ->  | EP1030: =#REF! ->  | EQ1030: =#REF! ->  | ER1030: =#REF! ->  | ES1030: =#REF! ->  | ET1030: =#REF! ->  | EU1030: =#REF! ->  | EV1030: =#REF! ->  | EW1030: =#REF! ->  | EX1030: =#REF! ->  | EY1030: =#REF! ->  | EZ1030: =#REF! ->  | FA1030: =#REF! ->  | FB1030: =#REF! ->  | FC1030: =#REF! ->  | FD1030: =#REF! ->  | FE1030: =#REF! ->  | FF1030: =#REF! ->  | FG1030: =#REF! ->  | FH1030: =#REF! ->  | FI1030: =#REF! ->  | FJ1030: =#REF! ->  | FK1030: =#REF! ->  | FL1030: =#REF! ->  | FM1030: =#REF! ->  | FN1030: =#REF! ->  | FO1030: =#REF! ->  | FP1030: =#REF! ->  | FQ1030: =#REF! ->  | FR1030: =#REF! ->  | FS1030: =#REF! ->  | FT1030: =#REF! ->  | FU1030: =#REF! ->  | FV1030: =#REF! ->  | FW1030: =#REF! ->  | FX1030: =#REF! ->  | FY1030: =#REF! ->  | FZ1030: =#REF! ->  | GA1030: =#REF! ->  | GB1030: =#REF! ->  | GC1030: =#REF! ->  | GD1030: =#REF! ->  | GE1030: =#REF! ->  | GF1030: =#REF! ->  | GG1030: =#REF! ->  | GH1030: =#REF! ->  | GI1030: =#REF! ->  | GJ1030: =#REF! ->  | GK1030: =#REF! ->  | GL1030: =#REF! ->  | GM1030: =#REF! ->  | GN1030: =#REF! ->  | GO1030: =#REF! ->  | GP1030: =#REF! ->  | GQ1030: =#REF! ->  | GR1030: =#REF! ->  | GS1030: =#REF! ->  | GT1030: =#REF! ->  | GU1030: =#REF! ->  | GV1030: =#REF! ->  | GW1030: =#REF! ->  | GX1030: =#REF! ->  | GY1030: =#REF! ->  | GZ1030: =#REF! ->  | HA1030: =#REF! ->  | HB1030: =#REF! ->  | HC1030: =#REF! ->  | HD1030: =#REF! ->  | HE1030: =#REF! ->  | HF1030: =#REF! ->  | HG1030: =#REF! ->  | HH1030: =#REF! ->  | HI1030: =#REF! ->  | HJ1030: =#REF! ->  | HK1030: =#REF! ->  | HL1030: =#REF! ->  | HM1030: =#REF! ->  | HN1030: =#REF! ->  | HO1030: =#REF! ->  | HP1030: =#REF! ->  | HQ1030: =#REF! ->  | HR1030: =#REF! ->  | HS1030: =#REF! ->  | HT1030: =#REF! ->  | HU1030: =#REF! ->  | HV1030: =#REF! ->  | HW1030: =#REF! ->  | HX1030: =#REF! ->  | HY1030: =#REF! ->  | HZ1030: =#REF! ->  | IA1030: =#REF! ->  | IB1030: =#REF! ->  | IC1030: =#REF! ->  | ID1030: =#REF! ->  | IE1030: =#REF! ->  | IF1030: =#REF! ->  | IG1030: =#REF! ->  | IH1030: =#REF! ->  | II1030: =#REF! ->  | IJ1030: =#REF! ->  | IK1030: =#REF! ->  | IL1030: =#REF! ->  | IM1030: =#REF! ->  | IN1030: =#REF! ->  | IO1030: =#REF! ->  | IP1030: =#REF! ->  | IQ1030: =#REF! ->  | IR1030: =#REF! ->  | IS1030: =#REF! ->  | IT1030: =#REF! ->  | IU1030: =#REF! ->  | IV1030: =#REF! ->  | IW1030: =#REF! ->  | IX1030: =#REF! ->  | IY1030: =#REF! ->  | IZ1030: =#REF! ->  | JA1030: =#REF! ->  | JB1030: =#REF! ->  | JC1030: =#REF! ->  | JD1030: =#REF! ->  | JE1030: =#REF! ->  | JF1030: =#REF! ->  | JG1030: =#REF! ->  | JH1030: =#REF! ->  | JI1030: =#REF! ->  | JJ1030: =#REF! ->  | JK1030: =#REF! ->  | JL1030: =#REF! ->  | JM1030: =#REF! ->  | JN1030: =#REF! ->  | JO1030: =#REF! ->  | JP1030: =#REF! ->  | JQ1030: =#REF! ->  | JR1030: =#REF! ->  | JS1030: =#REF! ->  | JT1030: =#REF! ->  | JU1030: =#REF! ->  | JV1030: =#REF! ->  | JW1030: =#REF! ->  | JX1030: =#REF! ->  | JY1030: =#REF! ->  | JZ1030: =#REF! ->  | KA1030: =#REF! ->  | KB1030: =#REF! ->  | KC1030: =#REF! ->  | KD1030: =#REF! ->  | KE1030: =#REF! ->  | KF1030: =#REF! ->  | KG1030: =#REF! ->  | KH1030: =#REF! ->  | KI1030: =#REF! ->  | KJ1030: =#REF! ->  | KK1030: =#REF! ->  | KL1030: =#REF! ->  | KM1030: =#REF! ->  | KN1030: =#REF! ->  | KO1030: =#REF! ->  | KP1030: =#REF! ->  | KQ1030: =#REF! ->  | KR1030: =#REF! ->  | KS1030: =#REF! ->  | KT1030: =#REF! ->  | KU1030: =#REF! ->  | KV1030: =#REF! ->  | KW1030: =#REF! ->  | KX1030: =#REF! ->  | KY1030: =#REF! ->  | KZ1030: =#REF! ->  | LA1030: =#REF! ->  | LB1030: =#REF! ->  | LC1030: =#REF! ->  | LD1030: =#REF! ->  | LE1030: =#REF! ->  | LF1030: =#REF! ->  | LG1030: =#REF! ->  | LH1030: =#REF! ->  | LI1030: =#REF! ->  | LJ1030: =#REF! ->  | LK1030: =#REF! ->  | LL1030: =#REF! ->  | LM1030: =#REF! ->  | LN1030: =#REF! ->  | LO1030: =#REF! ->  | LP1030: =#REF! ->  | LQ1030: =#REF! ->  | LR1030: =#REF! ->  | LS1030: =#REF! ->  | LT1030: =#REF! ->  | LU1030: =#REF! ->  | LV1030: =#REF! ->  | LW1030: =#REF! ->  | LX1030: =#REF! ->  | LY1030: =#REF! ->  | LZ1030: =#REF! ->  | MA1030: =#REF! ->  | MB1030: =#REF! ->  | MC1030: =#REF! ->  | MD1030: =#REF! ->  | ME1030: =#REF! ->  | MF1030: =#REF! ->  | MG1030: =#REF! ->  | MH1030: =#REF! ->  | MI1030: =#REF! ->  | MJ1030: =#REF! ->  | MK1030: =#REF! ->  | ML1030: =#REF! ->  | MM1030: =#REF! ->  | MN1030: =#REF! ->  | MO1030: =#REF! ->  | MP1030: =#REF! ->  | MQ1030: =#REF! ->  | MR1030: =#REF! ->  | MS1030: =#REF! ->  | MT1030: =#REF! ->  | MU1030: =#REF! ->  | MV1030: =#REF! ->  | MW1030: =#REF! ->  | MX1030: =#REF! ->  | MY1030: =#REF! ->  | MZ1030: =#REF! ->  | NA1030: =#REF! ->  | NB1030: =#REF! ->  | NC1030: =#REF! ->  | ND1030: =#REF! ->  | NE1030: =#REF! ->  | NF1030: =#REF! ->  | NG1030: =#REF! ->  | NH1030: =#REF! ->  | NI1030: =#REF! ->  | NJ1030: =#REF! ->  | NK1030: =#REF! ->  | NL1030: =#REF! ->  | NM1030: =#REF! ->  | NN1030: =#REF! ->  | NO1030: =#REF! ->  | NP1030: =#REF! ->  | NQ1030: =#REF! ->  | NR1030: =#REF! ->  | NS1030: =#REF! ->  | NT1030: =#REF! ->  | NU1030: =#REF! ->  | NV1030: =#REF! ->  | NW1030: =#REF! ->  | NX1030: =#REF! ->  | NY1030: =#REF! ->  | NZ1030: =#REF! ->  | OA1030: =#REF! ->  | OB1030: =#REF! ->  | OC1030: =#REF! ->  | OD1030: =#REF! ->  | OE1030: =#REF! ->  | OF1030: =#REF! ->  | OG1030: =#REF! ->  | OH1030: =#REF! ->  | OI1030: =#REF! ->  | OJ1030: =#REF! ->  | OK1030: =#REF! ->  | OL1030: =#REF! ->  | OM1030: =#REF! ->  | ON1030: =#REF! ->  | OO1030: =#REF! ->  | OP1030: =#REF! ->  | OQ1030: =#REF! ->  | OR1030: =#REF! ->  | OS1030: =#REF! ->  | OT1030: =#REF! ->  | OU1030: =#REF! ->  | OV1030: =#REF! ->  | OW1030: =#REF! ->  | OX1030: =#REF! ->  | OY1030: =#REF! ->  | OZ1030: =#REF! ->  | PA1030: =#REF! ->  | PB1030: =#REF! ->  | PC1030: =#REF! ->  | PD1030: =#REF! ->  | PE1030: =#REF! ->  | PF1030: =#REF! ->  | PG1030: =#REF! ->  | PH1030: =#REF! ->  | PI1030: =#REF! ->  | PJ1030: =#REF! ->  | PK1030: =#REF! ->  | PL1030: =#REF! ->  | PM1030: =#REF! ->  | PN1030: =#REF! ->  | PO1030: =#REF! ->  | PP1030: =#REF! ->  | PQ1030: =#REF! ->  | PR1030: =#REF! ->  | PS1030: =#REF! ->  | PT1030: =#REF! ->  | PU1030: =#REF! ->  | PV1030: =#REF! ->  | PW1030: =#REF! ->  | PX1030: =#REF! ->  | PY1030: =#REF! ->  | PZ1030: =#REF! ->  | QA1030: =#REF! ->  | QB1030: =#REF! ->  | QC1030: =#REF! ->  | QD1030: =#REF! ->  | QE1030: =#REF! ->  | QF1030: =#REF! ->  | QG1030: =#REF! ->  | QH1030: =#REF! ->  | QI1030: =#REF! ->  | QJ1030: =#REF! ->  | QK1030: =#REF! ->  | QL1030: =#REF! ->  | QM1030: =#REF! ->  | QN1030: =#REF! ->  | QO1030: =#REF! ->  | QP1030: =#REF! ->  | QQ1030: =#REF! ->  | QR1030: =#REF! ->  | QS1030: =#REF! ->  | QT1030: =#REF! ->  | QU1030: =#REF! ->  | QV1030: =#REF! ->  | QW1030: =#REF! ->  | QX1030: =#REF! ->  | QY1030: =#REF! ->  | QZ1030: =#REF! ->  | RA1030: =#REF! ->  | RB1030: =#REF! ->  | RC1030: =#REF! ->  | RD1030: =#REF! ->  | RE1030: =#REF! ->  | RF1030: =#REF! ->  | RG1030: =#REF! ->  | RH1030: =#REF! ->  | RI1030: =#REF! ->  | RJ1030: =#REF! ->  | RK1030: =#REF! ->  | RL1030: =#REF! ->  | RM1030: =#REF! ->  | RN1030: =#REF! ->  | RO1030: =#REF! ->  | RP1030: =#REF! ->  | RQ1030: =#REF! ->  | RR1030: =#REF! ->  | RS1030: =#REF! ->  | RT1030: =#REF! ->  | RU1030: =#REF! ->  | RV1030: =#REF! ->  | RW1030: =#REF! ->  | RX1030: =#REF! ->  | RY1030: =#REF! ->  | RZ1030: =#REF! ->  | SA1030: =#REF! ->  | SB1030: =#REF! ->  | SC1030: =#REF! ->  | SD1030: =#REF! ->  | SE1030: =#REF! ->  | SF1030: =#REF! ->  | SG1030: =#REF! ->  | SH1030: =#REF! ->  | SI1030: =#REF! ->  | SJ1030: =#REF! ->  | SK1030: =#REF! ->  | SL1030: =#REF! ->  | SM1030: =#REF! ->  | SN1030: =#REF! ->  | SO1030: =#REF! ->  | SP1030: =#REF! ->  | SQ1030: =#REF! ->  | SR1030: =#REF! ->  | SS1030: =#REF! ->  | ST1030: 3078 | SU1030: 3094 | SV1030: 3110 | SW1030: 3126 | SX1030: 3142 | SY1030: 3158 | SZ1030: 3174 | TA1030: 3190 | TB1030: 3206 | TC1030: 3222 | TD1030: 3238 | TE1030: 3254 | TF1030: 3270 | TG1030: 3286 | TH1030: 3302 | TI1030: 3318 | TJ1030: 3334 | TK1030: 3350 | TL1030: 3366 | TM1030: 3382 | TN1030: 3398 | TO1030: 3414 | TP1030: 3430 | TQ1030: 3446 | TR1030: 3462 | TS1030: 3478 | TT1030: 3494 | TU1030: 3510 | TV1030: 3526 | TW1030: 3542 | TX1030: 3558 | TY1030: 3574 | TZ1030: 3590 | UA1030: 3606 | UB1030: 3622 | UC1030: 3638 | UD1030: 3654 | UE1030: 3670 | UF1030: 3686 | UG1030: 3702 | UH1030: 3718 | UI1030: 3734 | UJ1030: 3750 | UK1030: 3766 | UL1030: 3782 | UM1030: 3798 | UN1030: 3814 | UO1030: 3830 | UP1030: 3846 | UQ1030: 3862 | UR1030: 3878 | US1030: 3894 | UT1030: 3910 | UU1030: 3926 | UV1030: 3942 | UW1030: 3958 | UX1030: 3974 | UY1030: 3990 | UZ1030: 4006 | VA1030: 4022 | VB1030: 4038 | VC1030: 4054 | VD1030: 4070 | VE1030: 4086 | VF1030: 4102 | VG1030: 4118 | VH1030: 4134 | VI1030: 4150 | VJ1030: 4166 | VK1030: 4182 | VL1030: 4198 | VM1030: 4214 | VN1030: 4230 | VO1030: 4246 | VP1030: 4262 | VQ1030: 4278 | VR1030: 4294 | VS1030: 4310 | VT1030: 4326 | VU1030: 4342 | VV1030: 4358 | VW1030: 4374 | VX1030: 4390 | VY1030: 4406 | VZ1030: 4422 | WA1030: 4438 | WB1030: 4454 | WC1030: 4470 | WD1030: 4486 | WE1030: 4502 | WF1030: 4518 | WG1030: 4534 | WH1030: 4550 | WI1030: 4566 | WJ1030: 4582 | WK1030: 4598 | WL1030: 4614 | WM1030: 4630 | WN1030: 4646 | WO1030: 4662 | WP1030: 4678 | WQ1030: 4694 | WR1030: 4710 | WS1030: 4726 | WT1030: 4742 | WU1030: 4758 | WV1030: 4774 | WW1030: 4790 | WX1030: 4806 | WY1030: 4822 | WZ1030: 4838 | XA1030: 4854 | XB1030: 4870 | XC1030: 4886 | XD1030: 4902 | XE1030: 4918 | XF1030: 4934 | XG1030: 4950 | XH1030: 4966 | XI1030: 4982 | XJ1030: 4998 | XK1030: 5014 | XL1030: 5030 | XM1030: 5046 | XN1030: 5062 | XO1030: 5078 | XP1030: 5094 | XQ1030: 5110 | XR1030: 5126 | XS1030: 5142 | XT1030: 5158 | XU1030: 5174 | XV1030: 5190 | XW1030: 5206 | XX1030: 5222 | XY1030: 5238 | XZ1030: 5254 | YA1030: 5270 | YB1030: 5286 | YC1030: 5302 | YD1030: 5318 | YE1030: 5334 | YF1030: 5350 | YG1030: 5366 | YH1030: 5382 | YI1030: 5398 | YJ1030: 5414 | YK1030: 5430 | YL1030: 5446 | YM1030: 5462 | YN1030: 5478 | YO1030: 5494 | YP1030: 5510 | YQ1030: 5526 | YR1030: 5542 | YS1030: 5558 | YT1030: 5574 | YU1030: 5590 | YV1030: 5606 | YW1030: 5622 | YX1030: 5638 | YY1030: 5654 | YZ1030: 5670 | ZA1030: 5686 | ZB1030: 5702 | ZC1030: 5718 | ZD1030: 5734 | ZE1030: 5750 | ZF1030: 5766 | ZG1030: 5782 | ZH1030: 5798 | ZI1030: 5814 | ZJ1030: 5830 | ZK1030: 5846 | ZL1030: 5862 | ZM1030: 5878 | ZN1030: 5894 | ZO1030: 5910 | ZP1030: 5926 | ZQ1030: 5942 | ZR1030: 5958 | ZS1030: 5974 | ZT1030: 5990 | ZU1030: 6006 | ZV1030: 6022 | ZW1030: 6038 | ZX1030: 6054 | ZY1030: 6070 | ZZ1030: 6086 | AAA1030: 6102 | AAB1030: 6118 | AAC1030: 6134 | AAD1030: 6150 | AAE1030: 6166 | AAF1030: 6182 | AAG1030: 6198 | AAH1030: 6214 | AAI1030: 6230 | AAJ1030: 6246 | AAK1030: 6262 | AAL1030: 6278 | AAM1030: 6294 | AAN1030: 6310 | AAO1030: 6326 | AAP1030: 6342 | AAQ1030: 6358 | AAR1030: 6374 | AAS1030: 6390 | AAT1030: 6406 | AAU1030: 6422 | AAV1030: 6438 | AAW1030: 6454 | AAX1030: 6470 | AAY1030: 6486 | AAZ1030: 6502 | ABA1030: 6518 | ABB1030: 6534 | ABC1030: 6550 | ABD1030: 6566 | ABE1030: 6582 | ABF1030: 6598 | ABG1030: 6614 | ABH1030: 6630 | ABI1030: 6646 | ABJ1030: 6662 | ABK1030: 6678 | ABL1030: 6694 | ABM1030: 6710 | ABN1030: 6726 | ABO1030: 6742 | ABP1030: 6758 | ABQ1030: 6774 | ABR1030: 6790 | ABS1030: 6806 | ABT1030: 6822 | ABU1030: 6838 | ABV1030: 6854 | ABW1030: 6870 | ABX1030: 6886 | ABY1030: 6902 | ABZ1030: 6918 | ACA1030: 6934 | ACB1030: 6950 | ACC1030: 6966 | ACD1030: 6982 | ACE1030: 6998 | ACF1030: 7014 | ACG1030: 7030 | ACH1030: 7046 | ACI1030: 7062 | ACJ1030: 7078 | ACK1030: 7094 | ACL1030: 7110 | ACM1030: 7126 | ACN1030: 7142 | ACO1030: 7158 | ACP1030: 7182 | ACQ1030: 7214 | ACR1030: 7246 | ACS1030: 7278 | ACT1030: 7310 | ACU1030: 7342 | ACV1030: 7374 | ACW1030: 7406 | ACX1030: 7438 | ACY1030: 7470 | ACZ1030: 7502 | ADA1030: 7534 | ADB1030: 7566 | ADC1030: 7598 | ADD1030: 7630 | ADE1030: 7662 | ADF1030: 7694 | ADG1030: 7726 | ADH1030: 7758 | ADI1030: 7790 | ADJ1030: 7822 | ADK1030: 7854 | ADL1030: 7886 | ADM1030: 7918 | ADN1030: 7950 | ADO1030: 7982 | ADP1030: 8014 | ADQ1030: 8046 | ADR1030: 8078 | ADS1030: 8110 | ADT1030: 8142 | ADU1030: 8174 | ADV1030: 8206 | ADW1030: 8238 | ADX1030: 8270 | ADY1030: 8302 | ADZ1030: 8334 | AEA1030: 8366 | AEB1030: 8398 | AEC1030: 8430 | AED1030: 8462 | AEE1030: 8494 | AEF1030: 8526 | AEG1030: 8558 | AEH1030: 8590 | AEI1030: 8622 | AEJ1030: 8654 | AEK1030: 8686 | AEL1030: 8718 | AEM1030: 8750 | AEN1030: 8782 | AEO1030: 8814 | AEP1030: 8846 | AEQ1030: 8878 | AER1030: 8910 | AES1030: 8942 | AET1030: 8974 | AEU1030: 9006 | AEV1030: 9038 | AEW1030: 9070 | AEX1030: 9102 | AEY1030: 9134 | AEZ1030: 9166 | AFA1030: 9198 | AFB1030: 9230 | AFC1030: 9262 | AFD1030: 9294 | AFE1030: 9326 | AFF1030: 9358 | AFG1030: 9390 | AFH1030: 9422 | AFI1030: 9454 | AFJ1030: 9486 | AFK1030: 9518 | AFL1030: 9550 | AFM1030: 9582 | AFN1030: 9614 | AFO1030: 9646 | AFP1030: 9678 | AFQ1030: 9710 | AFR1030: 9742 | AFS1030: 9774 | AFT1030: 9806 | AFU1030: 9838 | AFV1030: 9870 | AFW1030: 9902 | AFX1030: 9934 | AFY1030: 9966 | AFZ1030: 9998 | AGA1030: 10030 | AGB1030: 10062 | AGC1030: 10094 | AGD1030: 10126 | AGE1030: 10158 | AGF1030: 10190 | AGG1030: 10222 | AGH1030: 10254 | AGI1030: 10286 | AGJ1030: 10318 | AGK1030: 10350 | AGL1030: 10382 | AGM1030: 10414 | AGN1030: 10446 | AGO1030: 10478 | AGP1030: 10510 | AGQ1030: 10542 | AGR1030: 10574 | AGS1030: 10606 | AGT1030: 10638 | AGU1030: 10670 | AGV1030: 10702 | AGW1030: 10734 | AGX1030: 10766 | AGY1030: 10798 | AGZ1030: 10830 | AHA1030: 10862 | AHB1030: 10894 | AHC1030: 10926 | AHD1030: 10958 | AHE1030: 10990 | AHF1030: 11022 | AHG1030: 11054 | AHH1030: 11086 | AHI1030: 11118 | AHJ1030: 11150 | AHK1030: 11182 | AHL1030: 11214 | AHM1030: 11246 | AHN1030: 11278 | AHO1030: 11310 | AHP1030: 11342 | AHQ1030: 11374 | AHR1030: 11406 | AHS1030: 11438 | AHT1030: 11470 | AHU1030: 11502 | AHV1030: 11534 | AHW1030: 11566 | AHX1030: 11598 | AHY1030: 11630 | AHZ1030: 11662 | AIA1030: 11694 | AIB1030: 11726 | AIC1030: 11758 | AID1030: 11790 | AIE1030: 11822 | AIF1030: 11854 | AIG1030: 11886 | AIH1030: 11918 | AII1030: 11950 | AIJ1030: 11982 | AIK1030: 12014 | AIL1030: 12046 | AIM1030: 12078 | AIN1030: 12110 | AIO1030: 12142 | AIP1030: 12174 | AIQ1030: 12206 | AIR1030: 12238 | AIS1030: 12270 | AIT1030: 12302 | AIU1030: 12334 | AIV1030: 12366 | AIW1030: 12398 | AIX1030: 12430 | AIY1030: 12462 | AIZ1030: 12494 | AJA1030: 12526 | AJB1030: 12558 | AJC1030: 12590 | AJD1030: 12622 | AJE1030: 12654 | AJF1030: 12686 | AJG1030: 12718 | AJH1030: 12750 | AJI1030: 12782 | AJJ1030: 12814 | AJK1030: 12846 | AJL1030: 12878 | AJM1030: 12910 | AJN1030: 12942 | AJO1030: 12974 | AJP1030: 13006 | AJQ1030: 13038 | AJR1030: 13070 | AJS1030: 13102 | AJT1030: 13134 | AJU1030: 13166 | AJV1030: 13198 | AJW1030: 13230 | AJX1030: 13262 | AJY1030: 13294 | AJZ1030: 13326 | AKA1030: 13358 | AKB1030: 13390 | AKC1030: 13422 | AKD1030: 13454 | AKE1030: 13486 | AKF1030: 13518 | AKG1030: 13550 | AKH1030: 13582 | AKI1030: 13614 | AKJ1030: 13646 | AKK1030: 13678 | AKL1030: 13710 | AKM1030: 13742 | AKN1030: 13774 | AKO1030: 13806 | AKP1030: 13838 | AKQ1030: 13870 | AKR1030: 13902 | AKS1030: 13934 | AKT1030: 13966 | AKU1030: 13998 | AKV1030: 14030 | AKW1030: 14062 | AKX1030: 14094 | AKY1030: 14126 | AKZ1030: 14158 | ALA1030: 14190 | ALB1030: 14222 | ALC1030: 14254 | ALD1030: 14286 | ALE1030: 14318 | ALF1030: 14350 | ALG1030: 14382 | ALH1030: 14414 | ALI1030: 14446 | ALJ1030: 14478 | ALK1030: 14510 | ALL1030: 14542 | ALM1030: 14574 | ALN1030: 14606 | ALO1030: 14638 | ALP1030: 14670 | ALQ1030: 14702 | ALR1030: 14734 | ALS1030: 14766 | ALT1030: 14798 | ALU1030: 14830 | ALV1030: 14862 | ALW1030: 14894 | ALX1030: 14926 | ALY1030: 14958 | ALZ1030: 14990 | AMA1030: 15022 | AMB1030: 15054 | AMC1030: 15086 | AMD1030: 15118 | AME1030: 15150 | AMF1030: 15182 | AMG1030: 15214 | AMH1030: 15246 | AMI1030: 15278 | AMJ1030: 15310 | AMK1030: 15342
A1031: mid | B1031: =$O$2 -> 0.5 | C1031: =$O$3 -> 1.5 | D1031: =$O$4 -> 2.5 | E1031: =$O$5 -> 3.5 | F1031: =$O$6 -> 4.5 | G1031: =$O$7 -> 5.5 | H1031: =$O$8 -> 6.5 | I1031: =$O$9 -> 7.5 | J1031: =$O$10 -> 8.5 | K1031: =$O$11 -> 9.5 | L1031: =$O$12 -> 10.5 | M1031: =$O$13 -> 11.5 | N1031: =$O$14 -> 12.5 | O1031: =$O$15 -> 13.5 | P1031: =$O$16 -> 14.5 | Q1031: =$O$17 -> 15.75 | R1031: =$O$18 -> 17.5 | S1031: =$O$19 -> 19.5 | T1031: =$O$20 -> 21.5 | U1031: =$O$21 -> 23.5 | V1031: =$O$22 -> 25.5 | W1031: =$O$23 -> 27.5 | X1031: =$O$24 -> 29.5 | Y1031: =$O$25 -> 31.5 | Z1031: =$O$26 -> 33.5 | AA1031: =$O$27 -> 35.5 | AB1031: =$O$28 -> 37.5 | AC1031: =$O$29 -> 39.5 | AD1031: =$O$30 -> 41.5 | AE1031: =$O$31 -> 43.5 | AF1031: =$O$32 -> 45.5 | AG1031: =$O$33 -> 48 | AH1031: =$O$34 -> 51.5 | AI1031: =$O$35 -> 55.5 | AJ1031: =$O$36 -> 59.5 | AK1031: =$O$37 -> 63.5 | AL1031: =$O$38 -> 67.5 | AM1031: =$O$39 -> 71.5 | AN1031: =$O$40 -> 75.5 | AO1031: =$O$41 -> 79.5 | AP1031: =$O$42 -> 83.5 | AQ1031: =$O$43 -> 87.5 | AR1031: =$O$44 -> 91.5 | AS1031: =$O$45 -> 95.5 | AT1031: =$O$46 -> 99.5 | AU1031: =$O$47 -> 103.5 | AV1031: =$O$48 -> 107.5 | AW1031: =$O$49 -> 112.5 | AX1031: =$O$50 -> 119.5 | AY1031: =$O$51 -> 127.5 | AZ1031: =$O$52 -> 135.5 | BA1031: =$O$53 -> 143.5 | BB1031: =$O$54 -> 151.5 | BC1031: =$O$55 -> 159.5 | BD1031: =$O$56 -> 167.5 | BE1031: =$O$57 -> 175.5 | BF1031: =$O$58 -> 183.5 | BG1031: =$O$59 -> 191.5 | BH1031: =$O$60 -> 199.5 | BI1031: =$O$61 -> 207.5 | BJ1031: =$O$62 -> 215.5 | BK1031: =$O$63 -> 223.5 | BL1031: =$O$64 -> 231.5 | BM1031: =$O$65 -> 241.5 | BN1031: =#REF! ->  | BO1031: =#REF! ->  | BP1031: =#REF! ->  | BQ1031: =#REF! ->  | BR1031: =#REF! ->  | BS1031: =#REF! ->  | BT1031: =#REF! ->  | BU1031: =#REF! ->  | BV1031: =#REF! ->  | BW1031: =#REF! ->  | BX1031: =#REF! ->  | BY1031: =#REF! ->  | BZ1031: =#REF! ->  | CA1031: =#REF! ->  | CB1031: =#REF! ->  | CC1031: =#REF! ->  | CD1031: =#REF! ->  | CE1031: =#REF! ->  | CF1031: =#REF! ->  | CG1031: =#REF! ->  | CH1031: =#REF! ->  | CI1031: =#REF! ->  | CJ1031: =#REF! ->  | CK1031: =#REF! ->  | CL1031: =#REF! ->  | CM1031: =#REF! ->  | CN1031: =#REF! ->  | CO1031: =#REF! ->  | CP1031: =#REF! ->  | CQ1031: =#REF! ->  | CR1031: =#REF! ->  | CS1031: =#REF! ->  | CT1031: =#REF! ->  | CU1031: =#REF! ->  | CV1031: =#REF! ->  | CW1031: =#REF! ->  | CX1031: =#REF! ->  | CY1031: =#REF! ->  | CZ1031: =#REF! ->  | DA1031: =#REF! ->  | DB1031: =#REF! ->  | DC1031: =#REF! ->  | DD1031: =#REF! ->  | DE1031: =#REF! ->  | DF1031: =#REF! ->  | DG1031: =#REF! ->  | DH1031: =#REF! ->  | DI1031: =#REF! ->  | DJ1031: =#REF! ->  | DK1031: =#REF! ->  | DL1031: =#REF! ->  | DM1031: =#REF! ->  | DN1031: =#REF! ->  | DO1031: =#REF! ->  | DP1031: =#REF! ->  | DQ1031: =#REF! ->  | DR1031: =#REF! ->  | DS1031: =#REF! ->  | DT1031: =#REF! ->  | DU1031: =#REF! ->  | DV1031: =#REF! ->  | DW1031: =#REF! ->  | DX1031: =#REF! ->  | DY1031: =#REF! ->  | DZ1031: =#REF! ->  | EA1031: =#REF! ->  | EB1031: =#REF! ->  | EC1031: =#REF! ->  | ED1031: =#REF! ->  | EE1031: =#REF! ->  | EF1031: =#REF! ->  | EG1031: =#REF! ->  | EH1031: =#REF! ->  | EI1031: =#REF! ->  | EJ1031: =#REF! ->  | EK1031: =#REF! ->  | EL1031: =#REF! ->  | EM1031: =#REF! ->  | EN1031: =#REF! ->  | EO1031: =#REF! ->  | EP1031: =#REF! ->  | EQ1031: =#REF! ->  | ER1031: =#REF! ->  | ES1031: =#REF! ->  | ET1031: =#REF! ->  | EU1031: =#REF! ->  | EV1031: =#REF! ->  | EW1031: =#REF! ->  | EX1031: =#REF! ->  | EY1031: =#REF! ->  | EZ1031: =#REF! ->  | FA1031: =#REF! ->  | FB1031: =#REF! ->  | FC1031: =#REF! ->  | FD1031: =#REF! ->  | FE1031: =#REF! ->  | FF1031: =#REF! ->  | FG1031: =#REF! ->  | FH1031: =#REF! ->  | FI1031: =#REF! ->  | FJ1031: =#REF! ->  | FK1031: =#REF! ->  | FL1031: =#REF! ->  | FM1031: =#REF! ->  | FN1031: =#REF! ->  | FO1031: =#REF! ->  | FP1031: =#REF! ->  | FQ1031: =#REF! ->  | FR1031: =#REF! ->  | FS1031: =#REF! ->  | FT1031: =#REF! ->  | FU1031: =#REF! ->  | FV1031: =#REF! ->  | FW1031: =#REF! ->  | FX1031: =#REF! ->  | FY1031: =#REF! ->  | FZ1031: =#REF! ->  | GA1031: =#REF! ->  | GB1031: =#REF! ->  | GC1031: =#REF! ->  | GD1031: =#REF! ->  | GE1031: =#REF! ->  | GF1031: =#REF! ->  | GG1031: =#REF! ->  | GH1031: =#REF! ->  | GI1031: =#REF! ->  | GJ1031: =#REF! ->  | GK1031: =#REF! ->  | GL1031: =#REF! ->  | GM1031: =#REF! ->  | GN1031: =#REF! ->  | GO1031: =#REF! ->  | GP1031: =#REF! ->  | GQ1031: =#REF! ->  | GR1031: =#REF! ->  | GS1031: =#REF! ->  | GT1031: =#REF! ->  | GU1031: =#REF! ->  | GV1031: =#REF! ->  | GW1031: =#REF! ->  | GX1031: =#REF! ->  | GY1031: =#REF! ->  | GZ1031: =#REF! ->  | HA1031: =#REF! ->  | HB1031: =#REF! ->  | HC1031: =#REF! ->  | HD1031: =#REF! ->  | HE1031: =#REF! ->  | HF1031: =#REF! ->  | HG1031: =#REF! ->  | HH1031: =#REF! ->  | HI1031: =#REF! ->  | HJ1031: =#REF! ->  | HK1031: =#REF! ->  | HL1031: =#REF! ->  | HM1031: =#REF! ->  | HN1031: =#REF! ->  | HO1031: =#REF! ->  | HP1031: =#REF! ->  | HQ1031: =#REF! ->  | HR1031: =#REF! ->  | HS1031: =#REF! ->  | HT1031: =#REF! ->  | HU1031: =#REF! ->  | HV1031: =#REF! ->  | HW1031: =#REF! ->  | HX1031: =#REF! ->  | HY1031: =#REF! ->  | HZ1031: =#REF! ->  | IA1031: =#REF! ->  | IB1031: =#REF! ->  | IC1031: =#REF! ->  | ID1031: =#REF! ->  | IE1031: =#REF! ->  | IF1031: =#REF! ->  | IG1031: =#REF! ->  | IH1031: =#REF! ->  | II1031: =#REF! ->  | IJ1031: =#REF! ->  | IK1031: =#REF! ->  | IL1031: =#REF! ->  | IM1031: =#REF! ->  | IN1031: =#REF! ->  | IO1031: =#REF! ->  | IP1031: =#REF! ->  | IQ1031: =#REF! ->  | IR1031: =#REF! ->  | IS1031: =#REF! ->  | IT1031: =#REF! ->  | IU1031: =#REF! ->  | IV1031: =#REF! ->  | IW1031: =#REF! ->  | IX1031: =#REF! ->  | IY1031: =#REF! ->  | IZ1031: =#REF! ->  | JA1031: =#REF! ->  | JB1031: =#REF! ->  | JC1031: =#REF! ->  | JD1031: =#REF! ->  | JE1031: =#REF! ->  | JF1031: =#REF! ->  | JG1031: =#REF! ->  | JH1031: =#REF! ->  | JI1031: =#REF! ->  | JJ1031: =#REF! ->  | JK1031: =#REF! ->  | JL1031: =#REF! ->  | JM1031: =#REF! ->  | JN1031: =#REF! ->  | JO1031: =#REF! ->  | JP1031: =#REF! ->  | JQ1031: =#REF! ->  | JR1031: =#REF! ->  | JS1031: =#REF! ->  | JT1031: =#REF! ->  | JU1031: =#REF! ->  | JV1031: =#REF! ->  | JW1031: =#REF! ->  | JX1031: =#REF! ->  | JY1031: =#REF! ->  | JZ1031: =#REF! ->  | KA1031: =#REF! ->  | KB1031: =#REF! ->  | KC1031: =#REF! ->  | KD1031: =#REF! ->  | KE1031: =#REF! ->  | KF1031: =#REF! ->  | KG1031: =#REF! ->  | KH1031: =#REF! ->  | KI1031: =#REF! ->  | KJ1031: =#REF! ->  | KK1031: =#REF! ->  | KL1031: =#REF! ->  | KM1031: =#REF! ->  | KN1031: =#REF! ->  | KO1031: =#REF! ->  | KP1031: =#REF! ->  | KQ1031: =#REF! ->  | KR1031: =#REF! ->  | KS1031: =#REF! ->  | KT1031: =#REF! ->  | KU1031: =#REF! ->  | KV1031: =#REF! ->  | KW1031: =#REF! ->  | KX1031: =#REF! ->  | KY1031: =#REF! ->  | KZ1031: =#REF! ->  | LA1031: =#REF! ->  | LB1031: =#REF! ->  | LC1031: =#REF! ->  | LD1031: =#REF! ->  | LE1031: =#REF! ->  | LF1031: =#REF! ->  | LG1031: =#REF! ->  | LH1031: =#REF! ->  | LI1031: =#REF! ->  | LJ1031: =#REF! ->  | LK1031: =#REF! ->  | LL1031: =#REF! ->  | LM1031: =#REF! ->  | LN1031: =#REF! ->  | LO1031: =#REF! ->  | LP1031: =#REF! ->  | LQ1031: =#REF! ->  | LR1031: =#REF! ->  | LS1031: =#REF! ->  | LT1031: =#REF! ->  | LU1031: =#REF! ->  | LV1031: =#REF! ->  | LW1031: =#REF! ->  | LX1031: =#REF! ->  | LY1031: =#REF! ->  | LZ1031: =#REF! ->  | MA1031: =#REF! ->  | MB1031: =#REF! ->  | MC1031: =#REF! ->  | MD1031: =#REF! ->  | ME1031: =#REF! ->  | MF1031: =#REF! ->  | MG1031: =#REF! ->  | MH1031: =#REF! ->  | MI1031: =#REF! ->  | MJ1031: =#REF! ->  | MK1031: =#REF! ->  | ML1031: =#REF! ->  | MM1031: =#REF! ->  | MN1031: =#REF! ->  | MO1031: =#REF! ->  | MP1031: =#REF! ->  | MQ1031: =#REF! ->  | MR1031: =#REF! ->  | MS1031: =#REF! ->  | MT1031: =#REF! ->  | MU1031: =#REF! ->  | MV1031: =#REF! ->  | MW1031: =#REF! ->  | MX1031: =#REF! ->  | MY1031: =#REF! ->  | MZ1031: =#REF! ->  | NA1031: =#REF! ->  | NB1031: =#REF! ->  | NC1031: =#REF! ->  | ND1031: =#REF! ->  | NE1031: =#REF! ->  | NF1031: =#REF! ->  | NG1031: =#REF! ->  | NH1031: =#REF! ->  | NI1031: =#REF! ->  | NJ1031: =#REF! ->  | NK1031: =#REF! ->  | NL1031: =#REF! ->  | NM1031: =#REF! ->  | NN1031: =#REF! ->  | NO1031: =#REF! ->  | NP1031: =#REF! ->  | NQ1031: =#REF! ->  | NR1031: =#REF! ->  | NS1031: =#REF! ->  | NT1031: =#REF! ->  | NU1031: =#REF! ->  | NV1031: =#REF! ->  | NW1031: =#REF! ->  | NX1031: =#REF! ->  | NY1031: =#REF! ->  | NZ1031: =#REF! ->  | OA1031: =#REF! ->  | OB1031: =#REF! ->  | OC1031: =#REF! ->  | OD1031: =#REF! ->  | OE1031: =#REF! ->  | OF1031: =#REF! ->  | OG1031: =#REF! ->  | OH1031: =#REF! ->  | OI1031: =#REF! ->  | OJ1031: =#REF! ->  | OK1031: =#REF! ->  | OL1031: =#REF! ->  | OM1031: =#REF! ->  | ON1031: =#REF! ->  | OO1031: =#REF! ->  | OP1031: =#REF! ->  | OQ1031: =#REF! ->  | OR1031: =#REF! ->  | OS1031: =#REF! ->  | OT1031: =#REF! ->  | OU1031: =#REF! ->  | OV1031: =#REF! ->  | OW1031: =#REF! ->  | OX1031: =#REF! ->  | OY1031: =#REF! ->  | OZ1031: =#REF! ->  | PA1031: =#REF! ->  | PB1031: =#REF! ->  | PC1031: =#REF! ->  | PD1031: =#REF! ->  | PE1031: =#REF! ->  | PF1031: =#REF! ->  | PG1031: =#REF! ->  | PH1031: =#REF! ->  | PI1031: =#REF! ->  | PJ1031: =#REF! ->  | PK1031: =#REF! ->  | PL1031: =#REF! ->  | PM1031: =#REF! ->  | PN1031: =#REF! ->  | PO1031: =#REF! ->  | PP1031: =#REF! ->  | PQ1031: =#REF! ->  | PR1031: =#REF! ->  | PS1031: =#REF! ->  | PT1031: =#REF! ->  | PU1031: =#REF! ->  | PV1031: =#REF! ->  | PW1031: =#REF! ->  | PX1031: =#REF! ->  | PY1031: =#REF! ->  | PZ1031: =#REF! ->  | QA1031: =#REF! ->  | QB1031: =#REF! ->  | QC1031: =#REF! ->  | QD1031: =#REF! ->  | QE1031: =#REF! ->  | QF1031: =#REF! ->  | QG1031: =#REF! ->  | QH1031: =#REF! ->  | QI1031: =#REF! ->  | QJ1031: =#REF! ->  | QK1031: =#REF! ->  | QL1031: =#REF! ->  | QM1031: =#REF! ->  | QN1031: =#REF! ->  | QO1031: =#REF! ->  | QP1031: =#REF! ->  | QQ1031: =#REF! ->  | QR1031: =#REF! ->  | QS1031: =#REF! ->  | QT1031: =#REF! ->  | QU1031: =#REF! ->  | QV1031: =#REF! ->  | QW1031: =#REF! ->  | QX1031: =#REF! ->  | QY1031: =#REF! ->  | QZ1031: =#REF! ->  | RA1031: =#REF! ->  | RB1031: =#REF! ->  | RC1031: =#REF! ->  | RD1031: =#REF! ->  | RE1031: =#REF! ->  | RF1031: =#REF! ->  | RG1031: =#REF! ->  | RH1031: =#REF! ->  | RI1031: =#REF! ->  | RJ1031: =#REF! ->  | RK1031: =#REF! ->  | RL1031: =#REF! ->  | RM1031: =#REF! ->  | RN1031: =#REF! ->  | RO1031: =#REF! ->  | RP1031: =#REF! ->  | RQ1031: =#REF! ->  | RR1031: =#REF! ->  | RS1031: =#REF! ->  | RT1031: =#REF! ->  | RU1031: =#REF! ->  | RV1031: =#REF! ->  | RW1031: =#REF! ->  | RX1031: =#REF! ->  | RY1031: =#REF! ->  | RZ1031: =#REF! ->  | SA1031: =#REF! ->  | SB1031: =#REF! ->  | SC1031: =#REF! ->  | SD1031: =#REF! ->  | SE1031: =#REF! ->  | SF1031: =#REF! ->  | SG1031: =#REF! ->  | SH1031: =#REF! ->  | SI1031: =#REF! ->  | SJ1031: =#REF! ->  | SK1031: =#REF! ->  | SL1031: =#REF! ->  | SM1031: =#REF! ->  | SN1031: =#REF! ->  | SO1031: =#REF! ->  | SP1031: =#REF! ->  | SQ1031: =#REF! ->  | SR1031: =#REF! ->  | SS1031: =#REF! ->  | ST1031: 3086 | SU1031: 3102 | SV1031: 3118 | SW1031: 3134 | SX1031: 3150 | SY1031: 3166 | SZ1031: 3182 | TA1031: 3198 | TB1031: 3214 | TC1031: 3230 | TD1031: 3246 | TE1031: 3262 | TF1031: 3278 | TG1031: 3294 | TH1031: 3310 | TI1031: 3326 | TJ1031: 3342 | TK1031: 3358 | TL1031: 3374 | TM1031: 3390 | TN1031: 3406 | TO1031: 3422 | TP1031: 3438 | TQ1031: 3454 | TR1031: 3470 | TS1031: 3486 | TT1031: 3502 | TU1031: 3518 | TV1031: 3534 | TW1031: 3550 | TX1031: 3566 | TY1031: 3582 | TZ1031: 3598 | UA1031: 3614 | UB1031: 3630 | UC1031: 3646 | UD1031: 3662 | UE1031: 3678 | UF1031: 3694 | UG1031: 3710 | UH1031: 3726 | UI1031: 3742 | UJ1031: 3758 | UK1031: 3774 | UL1031: 3790 | UM1031: 3806 | UN1031: 3822 | UO1031: 3838 | UP1031: 3854 | UQ1031: 3870 | UR1031: 3886 | US1031: 3902 | UT1031: 3918 | UU1031: 3934 | UV1031: 3950 | UW1031: 3966 | UX1031: 3982 | UY1031: 3998 | UZ1031: 4014 | VA1031: 4030 | VB1031: 4046 | VC1031: 4062 | VD1031: 4078 | VE1031: 4094 | VF1031: 4110 | VG1031: 4126 | VH1031: 4142 | VI1031: 4158 | VJ1031: 4174 | VK1031: 4190 | VL1031: 4206 | VM1031: 4222 | VN1031: 4238 | VO1031: 4254 | VP1031: 4270 | VQ1031: 4286 | VR1031: 4302 | VS1031: 4318 | VT1031: 4334 | VU1031: 4350 | VV1031: 4366 | VW1031: 4382 | VX1031: 4398 | VY1031: 4414 | VZ1031: 4430 | WA1031: 4446 | WB1031: 4462 | WC1031: 4478 | WD1031: 4494 | WE1031: 4510 | WF1031: 4526 | WG1031: 4542 | WH1031: 4558 | WI1031: 4574 | WJ1031: 4590 | WK1031: 4606 | WL1031: 4622 | WM1031: 4638 | WN1031: 4654 | WO1031: 4670 | WP1031: 4686 | WQ1031: 4702 | WR1031: 4718 | WS1031: 4734 | WT1031: 4750 | WU1031: 4766 | WV1031: 4782 | WW1031: 4798 | WX1031: 4814 | WY1031: 4830 | WZ1031: 4846 | XA1031: 4862 | XB1031: 4878 | XC1031: 4894 | XD1031: 4910 | XE1031: 4926 | XF1031: 4942 | XG1031: 4958 | XH1031: 4974 | XI1031: 4990 | XJ1031: 5006 | XK1031: 5022 | XL1031: 5038 | XM1031: 5054 | XN1031: 5070 | XO1031: 5086 | XP1031: 5102 | XQ1031: 5118 | XR1031: 5134 | XS1031: 5150 | XT1031: 5166 | XU1031: 5182 | XV1031: 5198 | XW1031: 5214 | XX1031: 5230 | XY1031: 5246 | XZ1031: 5262 | YA1031: 5278 | YB1031: 5294 | YC1031: 5310 | YD1031: 5326 | YE1031: 5342 | YF1031: 5358 | YG1031: 5374 | YH1031: 5390 | YI1031: 5406 | YJ1031: 5422 | YK1031: 5438 | YL1031: 5454 | YM1031: 5470 | YN1031: 5486 | YO1031: 5502 | YP1031: 5518 | YQ1031: 5534 | YR1031: 5550 | YS1031: 5566 | YT1031: 5582 | YU1031: 5598 | YV1031: 5614 | YW1031: 5630 | YX1031: 5646 | YY1031: 5662 | YZ1031: 5678 | ZA1031: 5694 | ZB1031: 5710 | ZC1031: 5726 | ZD1031: 5742 | ZE1031: 5758 | ZF1031: 5774 | ZG1031: 5790 | ZH1031: 5806 | ZI1031: 5822 | ZJ1031: 5838 | ZK1031: 5854 | ZL1031: 5870 | ZM1031: 5886 | ZN1031: 5902 | ZO1031: 5918 | ZP1031: 5934 | ZQ1031: 5950 | ZR1031: 5966 | ZS1031: 5982 | ZT1031: 5998 | ZU1031: 6014 | ZV1031: 6030 | ZW1031: 6046 | ZX1031: 6062 | ZY1031: 6078 | ZZ1031: 6094 | AAA1031: 6110 | AAB1031: 6126 | AAC1031: 6142 | AAD1031: 6158 | AAE1031: 6174 | AAF1031: 6190 | AAG1031: 6206 | AAH1031: 6222 | AAI1031: 6238 | AAJ1031: 6254 | AAK1031: 6270 | AAL1031: 6286 | AAM1031: 6302 | AAN1031: 6318 | AAO1031: 6334 | AAP1031: 6350 | AAQ1031: 6366 | AAR1031: 6382 | AAS1031: 6398 | AAT1031: 6414 | AAU1031: 6430 | AAV1031: 6446 | AAW1031: 6462 | AAX1031: 6478 | AAY1031: 6494 | AAZ1031: 6510 | ABA1031: 6526 | ABB1031: 6542 | ABC1031: 6558 | ABD1031: 6574 | ABE1031: 6590 | ABF1031: 6606 | ABG1031: 6622 | ABH1031: 6638 | ABI1031: 6654 | ABJ1031: 6670 | ABK1031: 6686 | ABL1031: 6702 | ABM1031: 6718 | ABN1031: 6734 | ABO1031: 6750 | ABP1031: 6766 | ABQ1031: 6782 | ABR1031: 6798 | ABS1031: 6814 | ABT1031: 6830 | ABU1031: 6846 | ABV1031: 6862 | ABW1031: 6878 | ABX1031: 6894 | ABY1031: 6910 | ABZ1031: 6926 | ACA1031: 6942 | ACB1031: 6958 | ACC1031: 6974 | ACD1031: 6990 | ACE1031: 7006 | ACF1031: 7022 | ACG1031: 7038 | ACH1031: 7054 | ACI1031: 7070 | ACJ1031: 7086 | ACK1031: 7102 | ACL1031: 7118 | ACM1031: 7134 | ACN1031: 7150 | ACO1031: 7170 | ACP1031: 7198 | ACQ1031: 7230 | ACR1031: 7262 | ACS1031: 7294 | ACT1031: 7326 | ACU1031: 7358 | ACV1031: 7390 | ACW1031: 7422 | ACX1031: 7454 | ACY1031: 7486 | ACZ1031: 7518 | ADA1031: 7550 | ADB1031: 7582 | ADC1031: 7614 | ADD1031: 7646 | ADE1031: 7678 | ADF1031: 7710 | ADG1031: 7742 | ADH1031: 7774 | ADI1031: 7806 | ADJ1031: 7838 | ADK1031: 7870 | ADL1031: 7902 | ADM1031: 7934 | ADN1031: 7966 | ADO1031: 7998 | ADP1031: 8030 | ADQ1031: 8062 | ADR1031: 8094 | ADS1031: 8126 | ADT1031: 8158 | ADU1031: 8190 | ADV1031: 8222 | ADW1031: 8254 | ADX1031: 8286 | ADY1031: 8318 | ADZ1031: 8350 | AEA1031: 8382 | AEB1031: 8414 | AEC1031: 8446 | AED1031: 8478 | AEE1031: 8510 | AEF1031: 8542 | AEG1031: 8574 | AEH1031: 8606 | AEI1031: 8638 | AEJ1031: 8670 | AEK1031: 8702 | AEL1031: 8734 | AEM1031: 8766 | AEN1031: 8798 | AEO1031: 8830 | AEP1031: 8862 | AEQ1031: 8894 | AER1031: 8926 | AES1031: 8958 | AET1031: 8990 | AEU1031: 9022 | AEV1031: 9054 | AEW1031: 9086 | AEX1031: 9118 | AEY1031: 9150 | AEZ1031: 9182 | AFA1031: 9214 | AFB1031: 9246 | AFC1031: 9278 | AFD1031: 9310 | AFE1031: 9342 | AFF1031: 9374 | AFG1031: 9406 | AFH1031: 9438 | AFI1031: 9470 | AFJ1031: 9502 | AFK1031: 9534 | AFL1031: 9566 | AFM1031: 9598 | AFN1031: 9630 | AFO1031: 9662 | AFP1031: 9694 | AFQ1031: 9726 | AFR1031: 9758 | AFS1031: 9790 | AFT1031: 9822 | AFU1031: 9854 | AFV1031: 9886 | AFW1031: 9918 | AFX1031: 9950 | AFY1031: 9982 | AFZ1031: 10014 | AGA1031: 10046 | AGB1031: 10078 | AGC1031: 10110 | AGD1031: 10142 | AGE1031: 10174 | AGF1031: 10206 | AGG1031: 10238 | AGH1031: 10270 | AGI1031: 10302 | AGJ1031: 10334 | AGK1031: 10366 | AGL1031: 10398 | AGM1031: 10430 | AGN1031: 10462 | AGO1031: 10494 | AGP1031: 10526 | AGQ1031: 10558 | AGR1031: 10590 | AGS1031: 10622 | AGT1031: 10654 | AGU1031: 10686 | AGV1031: 10718 | AGW1031: 10750 | AGX1031: 10782 | AGY1031: 10814 | AGZ1031: 10846 | AHA1031: 10878 | AHB1031: 10910 | AHC1031: 10942 | AHD1031: 10974 | AHE1031: 11006 | AHF1031: 11038 | AHG1031: 11070 | AHH1031: 11102 | AHI1031: 11134 | AHJ1031: 11166 | AHK1031: 11198 | AHL1031: 11230 | AHM1031: 11262 | AHN1031: 11294 | AHO1031: 11326 | AHP1031: 11358 | AHQ1031: 11390 | AHR1031: 11422 | AHS1031: 11454 | AHT1031: 11486 | AHU1031: 11518 | AHV1031: 11550 | AHW1031: 11582 | AHX1031: 11614 | AHY1031: 11646 | AHZ1031: 11678 | AIA1031: 11710 | AIB1031: 11742 | AIC1031: 11774 | AID1031: 11806 | AIE1031: 11838 | AIF1031: 11870 | AIG1031: 11902 | AIH1031: 11934 | AII1031: 11966 | AIJ1031: 11998 | AIK1031: 12030 | AIL1031: 12062 | AIM1031: 12094 | AIN1031: 12126 | AIO1031: 12158 | AIP1031: 12190 | AIQ1031: 12222 | AIR1031: 12254 | AIS1031: 12286 | AIT1031: 12318 | AIU1031: 12350 | AIV1031: 12382 | AIW1031: 12414 | AIX1031: 12446 | AIY1031: 12478 | AIZ1031: 12510 | AJA1031: 12542 | AJB1031: 12574 | AJC1031: 12606 | AJD1031: 12638 | AJE1031: 12670 | AJF1031: 12702 | AJG1031: 12734 | AJH1031: 12766 | AJI1031: 12798 | AJJ1031: 12830 | AJK1031: 12862 | AJL1031: 12894 | AJM1031: 12926 | AJN1031: 12958 | AJO1031: 12990 | AJP1031: 13022 | AJQ1031: 13054 | AJR1031: 13086 | AJS1031: 13118 | AJT1031: 13150 | AJU1031: 13182 | AJV1031: 13214 | AJW1031: 13246 | AJX1031: 13278 | AJY1031: 13310 | AJZ1031: 13342 | AKA1031: 13374 | AKB1031: 13406 | AKC1031: 13438 | AKD1031: 13470 | AKE1031: 13502 | AKF1031: 13534 | AKG1031: 13566 | AKH1031: 13598 | AKI1031: 13630 | AKJ1031: 13662 | AKK1031: 13694 | AKL1031: 13726 | AKM1031: 13758 | AKN1031: 13790 | AKO1031: 13822 | AKP1031: 13854 | AKQ1031: 13886 | AKR1031: 13918 | AKS1031: 13950 | AKT1031: 13982 | AKU1031: 14014 | AKV1031: 14046 | AKW1031: 14078 | AKX1031: 14110 | AKY1031: 14142 | AKZ1031: 14174 | ALA1031: 14206 | ALB1031: 14238 | ALC1031: 14270 | ALD1031: 14302 | ALE1031: 14334 | ALF1031: 14366 | ALG1031: 14398 | ALH1031: 14430 | ALI1031: 14462 | ALJ1031: 14494 | ALK1031: 14526 | ALL1031: 14558 | ALM1031: 14590 | ALN1031: 14622 | ALO1031: 14654 | ALP1031: 14686 | ALQ1031: 14718 | ALR1031: 14750 | ALS1031: 14782 | ALT1031: 14814 | ALU1031: 14846 | ALV1031: 14878 | ALW1031: 14910 | ALX1031: 14942 | ALY1031: 14974 | ALZ1031: 15006 | AMA1031: 15038 | AMB1031: 15070 | AMC1031: 15102 | AMD1031: 15134 | AME1031: 15166 | AMF1031: 15198 | AMG1031: 15230 | AMH1031: 15262 | AMI1031: 15294 | AMJ1031: 15326 | AMK1031: 15366
